{"text_format":"5","workbook":"xlsx","n_sheets":5,"sheets":["Összesítő - II. ütem","II. ÜTEM-VÍZELLÁTÁS-CSATORNÁZÁS","II. ÜTEM - FŰTÉS","II. ÜTEM - LÉGTECHNIKA","II. ÜTEM - GÁZELLÁTÁS"],"props":{"creator":"user","last_modified_by":"user"},"read":"whole","wrapped":"gz","date_system":"1900"}

{"sheet":"Összesítő - II. ütem","index":0,"n_rows":23,"n_cols":6,"rows_kept":23,"merged":[[20,2,20,6],[21,2,21,6],[22,2,22,6]]}
[]
[]
[]
[]
[null,"Veresegyházi Katolikus Gimnázium"]
[null,"2112 Veresegyház, Fő út 117-125.\nhrsz.: 58\n\n"]
[]
[]
[null,"ÉPÜLETGÉPÉSZET"]
[null,"AJÁNLATADÁSI TERV - II. ÜTEM"]
[null,"ÁRAZATLAN KÖLTSÉGVETÉS"]
[]
[]
[null,"Munkanem megnevezése","Anyag",null,null,"Díj"]
[null,"Vízellátás - csatornázás",{"$f":"'II. ÜTEM-VÍZELLÁTÁS-CSATORNÁZÁS'!H271","v":{"v":0,"d":"0 Ft"}},null,null,{"$f":"'II. ÜTEM-VÍZELLÁTÁS-CSATORNÁZÁS'!I271","v":{"v":0,"d":"0 Ft"}}]
[null,"Fűtés",{"$f":"'II. ÜTEM - FŰTÉS'!H321","v":{"v":0,"d":"0 Ft"}},null,null,{"$f":"'II. ÜTEM - FŰTÉS'!I321","v":{"v":0,"d":"0 Ft"}}]
[null,"Légtechnika",{"$f":"'II. ÜTEM - LÉGTECHNIKA'!H203","v":{"v":0,"d":"0 Ft"}},null,null,{"$f":"'II. ÜTEM - LÉGTECHNIKA'!I203","v":{"v":0,"d":"0 Ft"}}]
[null,"Gázellátás",{"$f":"'II. ÜTEM - GÁZELLÁTÁS'!H98","v":{"v":0,"d":"0 Ft"}},null,null,{"$f":"'II. ÜTEM - GÁZELLÁTÁS'!I98","v":{"v":0,"d":"0 Ft"}}]
[]
[null,"Összesen",{"$f":"SUM(C15:C18)","v":{"v":0,"d":"0 Ft"}},null,null,{"$f":"SUM(F15:F18)","v":{"v":0,"d":"0 Ft"}}]
[null,"Mindösszesen ÁFA nélkül",{"$f":"F20+C20","v":{"v":0,"d":"0 Ft"}}]
[null,"27% ÁFA",{"$f":"C21*0.27","v":{"v":0,"d":"0 Ft"}}]
[null,"Mindösszesen ÁFA-val",{"$f":"C21+C22","v":{"v":0,"d":"0 Ft"}}]

{"sheet":"II. ÜTEM-VÍZELLÁTÁS-CSATORNÁZÁS","index":1,"n_rows":271,"n_cols":9,"rows_kept":271,"headers":{"header":["VERESEGYHÁZI KATOLIKUS GIMNÁZIUM 2112 Veresegyház, Fő út 117-125., hrsz.: 58 AJÁNLATADÁSI TERV","","2017.08.11."],"footer":["TEVIM Kft."]}}
["No.","  Azonosító","  Szöveg","Mennyiség","Egys.","Anyagár","Óradij","xAnyagár","xÓradij"]
[]
[null,null,"SZANITER BERENDEZÉSEK                                                       FALIKÚT BERENDEZÉS                                                             Falikút, kiöntő vagy mosóvályú elhelyezése és bekötése, falikút, szifon (bűzelzáró) és csaptelep nélkül, fali kiöntő, szifon (bűzelzáró) és tartozékok nélkül, acéllemezből vagy öntöttvasból"]
[1,"82-009-1.2-0313641","Fali kiöntő rozsdamentes lemezből, leeresztőszeleppel, szifon és csaptelep nélkül, R: B&K WB440C",3,"db",0,0,{"$f":"IF(D4=0,\"\",D4*F4)","v":0},{"$f":"IF(D4=0,\"\",D4*G4)","v":0}]
[{"$nulls":8},{"$f":"IF(D5=0,\"\",D5*G5)","v":""}]
[null,null,"Egyoldalon menetes szerelvény elhelyezése, külső vagy belső menettel, illetve hollandival csatlakoztatva DN 15 légtelenítőszelep, kifolyó- és locsolószelep, töltőszelep"]
[2,"82-001-6.2.8-0110804","MOFÉM kifolyószelep, gyorscsatlakozóval, légbeszívóval 1/2\" sárgaréz, krómozott, 10 bar, Kód: 162-0007-00",6,"db",0,0,0,0]
[]
[null,null,"Kétoldalon menetes vagy roppantógyűrűs szerelvény elhelyezése, külső vagy belső menettel, illetve hollandival csatlakoztatva DN 15 szelepek, csappantyúk (szabályzó, folytó-elzáró, beavatkozó)",{"$nulls":5},{"$f":"IF(D9=0,\"\",D9*G9)","v":""}]
[3,"82-001-7.2.1-0110911","MOFÉM csempeszelep kék, 1/2\", Kód: 164-0014-00",3,"db",0,0,0,0]
[]
[4,"82-001-7.2.1-0110912","MOFÉM csempeszelep piros, 1/2\", Kód: 164-0015-00",3,"db",0,0,0,0]
[]
[null,null,"Vizes berendezési tárgyak bűzelzáróinak felszerelése, falikúthoz-mosogatóhoz DN 50"]
[5,"82-009-31.1.2-0135004","HL100G/50, Konyhai szifon DN50 x 6/4\", gömbcsuklóval",3,"db",0,0,0,0]
[]
[null,null,"MOSDÓ (tantermekben)                                                                          Mosdó vagy mosómedence berendezés elhelyezése és bekötése, kifolyószelep, bűzelzáró és sarokszelep nélkül, ráépíthető mosdó 60x35 cm, 1 csaplyukkal középen,"]
[6,"K-tétel","MARMY Serena típ.",8,"db",0,0,0,0]
[]
[null,null,"Csaptelepek és szerelvényeinek felszerelése, mosdócsaptelepek, álló illetve süllyesztett mosdócsaptelep"]
[7,"82-009-19.3.2-0318062","MOFÉM Mambó-5 egykaros mosdócsaptelep, ECO kerámia vezérlőegység forrázás elleni védelemmel, kr. leeresztőszeleppel, kód: 150-0034-00",8,"db",0,0,0,0]
[]
[null,null,"Berendezési tárgyak szerelvényeinek felszerelése, sarokszelep szerelés"]
[8,"82-009-17.1-0110161","MOFÉM sárgaréz sarokszelep 1/2\"-1/2\" sárgaréz, krómozott, 10 bar, Kód: 163-0002-00",16,"db",0,0,0,0]
[]
[null,null,"Vizes berendezési tárgyak bűzelzáróinak felszerelése, falikúthoz-mosogatóhoz mosdóhoz, bidéhez"]
[9,"82-009-31.2-0130629","MOFÉM csőszifon leeresztő szelep nélkül, állítható, krómozott, Kód: 165-0027-05",8,"db",0,0,0,0]
[]
[null,null,"Tantermi mosdók víz és csatorna bekötése:                                          - átm.16-20-25-ös méretű Uponor MLCP típ. vízvezetékek, idomokkal                                                                        - vízvezetékek szigetelése TUBOLIT DG típ. hőszigeteléssel, 9-13mm vast.                                                                    - átm.40-50mm méretű KA-PVC csatorna vezetékek, idomokkal"]
[10,"K-tétel",null,1,"klt.",0,0,0,0]
[]
[null,null,"MOSDÓ (vizesblokkokban)                                                           Mosdó vagy mosómedence berendezés elhelyezése és bekötése, kifolyószelep, bűzelzáró és sarokszelep nélkül, pultba süllyeszthető mosdó 56 x 47,5 cm, 1 csaplyukkal középen,"]
[11,"K-tétel","JIKA IBON 813011 típ.",25,"db",0,0,0,0]
[]
[null,null,"Csaptelepek és szerelvényeinek felszerelése, mosdócsaptelepek, álló illetve süllyesztett mosdócsaptelep"]
[12,"82-009-19.3.2-0318062","MOFÉM Mambó-5 egykaros mosdócsaptelep, ECO kerámia vezérlőegység forrázás elleni védelemmel, kr. leeresztőszeleppel, kód: 150-0034-00",25,"db",0,0,0,0]
[]
[null,null,"Berendezési tárgyak szerelvényeinek felszerelése, sarokszelep szerelés"]
[13,"82-009-17.1-0110161","MOFÉM sárgaréz sarokszelep 1/2\"-1/2\" sárgaréz, krómozott, 10 bar, Kód: 163-0002-00",50,"db",0,0,0,0]
[]
[null,null,"Vizes berendezési tárgyak bűzelzáróinak felszerelése, falikúthoz-mosogatóhoz mosdóhoz, bidéhez"]
[14,"82-009-31.2-0130629","MOFÉM csőszifon leeresztő szelep nélkül, állítható, krómozott, Kód: 165-0027-05",25,"db",0,0,0,0]
[]
[null,null,"MOSDÓ (általános helyekre)                                                                    Mosdó vagy mosómedence berendezés elhelyezése és bekötése, kifolyószelep, bűzelzáró és sarokszelep nélkül, falra szerelhető porcelán kivitelben (komplett)"]
[15,"82-009-5.1-0112781","ALFÖLDI/BÁZIS porcelán mosdó, 60 cm, 1 csaplyukkal, fúrt, fehér, Kód: 4191 60",2,"db",0,0,0,0]
[]
[null,null,"Csaptelepek és szerelvényeinek felszerelése, mosdócsaptelepek, álló illetve süllyesztett mosdócsaptelep"]
[16,"82-009-19.3.2-0318062","MOFÉM Mambó-5 egykaros mosdócsaptelep, ECO kerámia vezérlőegység forrázás elleni védelemmel, kr. leeresztőszeleppel, kód: 150-0034-00",2,"db",0,0,0,0]
[]
[null,null,"Berendezési tárgyak szerelvényeinek felszerelése, sarokszelep szerelés"]
[17,"82-009-17.1-0110161","MOFÉM sárgaréz sarokszelep 1/2\"-1/2\" sárgaréz, krómozott, 10 bar, Kód: 163-0002-00",4,"db",0,0,0,0]
[]
[null,null,"Vizes berendezési tárgyak bűzelzáróinak felszerelése, falikúthoz-mosogatóhoz mosdóhoz, bidéhez"]
[18,"82-009-31.2-0130629","MOFÉM csőszifon leeresztő szelep nélkül, állítható, krómozott, Kód: 165-0027-05",2,"db",0,0,0,0]
[]
[null,null,"Kézmosó berendezés elhelyezése és bekötése, kifolyószelep, sarokszelep, szifontakaró és bűzelzáró nélkül, porcelán kivitelben"]
[19,"82-009-6.1-0117061","ALFÖLDI/SAVAL porcelán kézmosó 45 cm, 1 csaplyukkal, fúrt, fehér, Kód: 7035 25",1,"db",0,0,0,0]
[]
[null,null,"Csaptelepek és szerelvényeinek felszerelése, mosdócsaptelepek, álló illetve süllyesztett mosdócsaptelep"]
[20,"82-009-19.3.2-0318062","MOFÉM Mambó-5 egykaros mosdócsaptelep, ECO kerámia vezérlőegység forrázás elleni védelemmel, kr. leeresztőszeleppel, kód: 150-0034-00",1,"db",0,0,0,0]
[]
[null,null,"Berendezési tárgyak szerelvényeinek felszerelése, sarokszelep szerelés"]
[21,"82-009-17.1-0110161","MOFÉM sárgaréz sarokszelep 1/2\"-1/2\" sárgaréz, krómozott, 10 bar, Kód: 163-0002-00",2,"db",0,0,0,0]
[]
[null,null,"Vizes berendezési tárgyak bűzelzáróinak felszerelése, falikúthoz-mosogatóhoz mosdóhoz, bidéhez"]
[22,"82-009-31.2-0130629","MOFÉM csőszifon leeresztő szelep nélkül, állítható, krómozott, Kód: 165-0027-05",1,"db",0,0,0,0]
[]
[null,null,"MOSOGATÓ (kétmedencés)                                                                      Mosogató elhelyezése és bekötése, hideg-meleg vízre, háztartási mosogatók, csaptelep és bűzelzáró nélkül, bútorba beépített, kétmedencés",{"$nulls":4},{"$f":"IF(D68=0,\"\",D68*F68)","v":""}]
[23,"K-tétel","TEKA Alba 80 B TG Metál fekete típ. gránit háztartási mosogató, kétmedencés 2x338 x 421 x 205",2,"db",0,0,0,0]
[]
[null,null,"Csaptelepek és szerelvényeinek felszerelése, mosogató csaptelepek, álló, illetve süllyesztett mosogató csaptelep"]
[24,"82-009-19.5.2-0318266","MOFÉM TREND PLUS álló mosogató csaptelep, forgatható felső kifolyócsővel, kifolyócső 190mm, kód: 152-1551-00",2,"db",0,0,0,0]
[{"$nulls":8},{"$f":"IF(D73=0,\"\",D73*G73)","v":""}]
[null,null,"Berendezési tárgyak szerelvényeinek felszerelése, sarokszelep szerelés"]
[25,"82-009-17.1-0110162","MOFÉM sárgaréz sarokszelep 1/2\"-3/8\" sárgaréz, krómozott, 10 bar, Kód: 163-0006-00",2,"db",0,0,0,0]
[]
[null,null,"Berendezési tárgyak szerelvényeinek felszerelése, kombinált sarokszelep szerelés"]
[26,"82-009-17.2-0130623","MOFÉM kombinált sarokszelep 1/2\"-3/8\"-3/4\" csatlakozással, krómozott, Kód: 163-0015-01",2,"db",0,0,0,0]
[]
[null,null,"Vizes berendezési tárgyak bűzelzáróinak felszerelése, falikúthoz-mosogatóhoz DN 50"]
[27,"82-009-31.1.2-0135002","HL100/50, Konyhai szifon DN50 x 6/4\", gömbcsuklóval és visszacsapó szelepes mosógép csatlakozóval",2,"db",0,0,0,0]
[]
[null,null,"Mosogató víz és csatorna bekötése: - átm.16-20-25-ös méretű Uponor MLCP típ. vízvezetékek, idomokkal - vízvezetékek szigetelése TUBOLIT DG típ. hőszigeteléssel, 9-13mm vast. - átm.40-50mm méretű KA-PVC csatorna vezetékek, idomokkal"]
[28,"K-tétel",null,1,"klt.",0,0,0,0]
[]
[null,null,"WC BERENDEZÉS                                                                              WC csésze elhelyezése és bekötése, öblítőtartály, sarokszelep, WC ülőke, nyomógomb nélkül, porcelánból, fali WC csésze, mélyöblítésű kivitelben"]
[29,"K-tétel","JIKA LYRA PLUS 823380 típ. porcelán mélyöblítésű WC csésze, hátsó kifolyású, falra szerelhető, fehér",26,"db",0,0,0,0]
[]
[null,null,"WC-csésze kiegészítő szerelvényeinek elhelyezése,               WC-ülőke"]
[30,"K-tétel","JIKA LYRA PLUS",26,"db",0,0,0,0]
[]
[null,null,"WC öblítőtartály felszerelése és bekötése, szerelőelemes (működtető elem nélkül) falba építhető"]
[31,"82-009-13.6.2-0121003","VALSIR Winner falsík alatti WC tartály függesztett WC-hez, álló, keretes, mechanikus, 150x500x1140, Cikkszám: VS863602",26,"db",0,0,0,0]
[]
[null,null,"WC-csésze kiegészítő szerelvényeinek elhelyezése, WC csatlakozó, WC nyomólapok és tartozékai"]
[32,"82-009-12.5-0121039","VALSIR nyomólap Winner és Tropea tartályokhoz, műanyag, két öblítési mennyiség, fehér színben, Cikkszám: VS870501",26,"db",0,0,0,0]
[]
[null,null,"VIZELDE                                                                                                 Vizelde vagy piszoár berendezés elhelyezése, öblítőszelep, sarokszelep és bűzelzáró nélkül, porcelán, falra szerelhető vizelde"]
[33,"K-tétel","JIKA GOLEM 843061 leszívó rendszerű, külső vízbevezetéssel, öblítés vezérlés nélkül",16,"db",0,0,0,0]
[]
[null,null,"Vizelde kiegészítő elemei, öblítőszelep, nyomógombos"]
[34,"82-009-16.2.1-0110903","MOFÉM automata vizelde öblítőszelep, Kód: 166-0008-00",16,"db",0,0,0,0]
[]
[null,null,"Hátsó kifolyású vizelde szifon, NÁ50 csatlakozással felszerelve, V&B ALFÖLDI által forgalmazva,"]
[35,"K-tétel","cikkszám: 9326 00 00",16,"db",0,0,0,0]
[]
[null,null,"MOSDÓTEKNŐ (rajzterembe)                                                            Univerzális mosdóteknő, falra szerelheto mosótekno 17-es krómacélból, fali konzolokkal szerelve. 70 mm széles csaptelep-padozattal, szennyfogó szűrővel és csaptelep-furat nélkül. 6/4\"-os állócsöves leeresztoszeleppel, csavarokkal és tiplikkel, 750x500x320"]
[36,"K-tétel","Franke SIRIUS CA210 típ.",2,"db",0,0,0,0]
[]
[null,null,"Csaptelepek és szerelvényeinek felszerelése, mosogató csaptelepek, álló, illetve süllyesztett mosogató csaptelep"]
[37,"82-009-19.5.2-0318266","MOFÉM TREND PLUS álló mosogató csaptelep, forgatható felső kifolyócsővel, kifolyócső 190mm, kód: 152-1551-00",2,"db",0,0,0,0]
[]
[null,null,"Berendezési tárgyak szerelvényeinek felszerelése, sarokszelep szerelés"]
[38,"82-009-17.1-0110162","MOFÉM sárgaréz sarokszelep 1/2\"-3/8\" sárgaréz, krómozott, 10 bar, Kód: 163-0006-00",4,"db",0,0,0,0]
[]
[null,null,"Vizes berendezési tárgyak bűzelzáróinak felszerelése, falikúthoz-mosogatóhoz DN 50"]
[39,"82-009-31.1.2-0135004","HL100G/50, Konyhai szifon DN50 x 6/4\", gömbcsuklóval",1,"db",0,0,0,0]
[]
[null,null,"Mosdóteknő víz és csatorna bekötése: - átm.16-20-25-ös méretű Uponor MLCP típ. vízvezetékek, idomokkal - vízvezetékek szigetelése TUBOLIT DG típ. hőszigeteléssel, 9-13mm vast. - átm.40-50mm méretű KA-PVC csatorna vezetékek, idomokkal"]
[40,"K-tétel",null,1,"klt.",0,0,0,0]
[]
[null,null,"AKADÁLYMENTES WC HELYISÉG BERENDEZÉSI TÁRGYAI                                                                    Porcelán mosdó mozgáskorlátozottak részére, rögzítőelemmel, de csaptelep, leresztő és bűzelzáró nélkül, felszerelve GYUR'MA típusú,"]
[41,"K-tétel","MOKO-699700 VERA 503. 700x570 mm",4,"db",0,0,0,0]
[]
[null,null,"Csaptelepek és szerelvényeinek felszerelése, orvosi és speciális csaptelepek, mosdócsaptelep"]
[42,"82-009-19.8.1-0313281","PRESTO 7000 karos keverő mosdócsap, mozgássérültek részére, Cikkszám: 68234",4,"db",0,0,0,0]
[]
[null,null,"Falon kívüli flexibilis szifon, lefolyó készlettel GYUR'MA típusú,"]
[43,"K-tétel","MOKO-272400",4,"db",0,0,0,0]
[]
[null,null,"Porcelán WC mozgáskorlátozottak részére, fali kivtelben, felszerelve GYUR'MA típusú, elől zárt"]
[44,"K-tétel","MOKO-511300 WABI 710, hátsó kifolyású",4,"db",0,0,{"$f":"IF(D132=0,\"\",D132*F132)","v":0},0]
[]
[null,null,"WC ülőke, elől zárt, mozgáskorlátozottak részére, felszerelve (felszerelési idő, a WC csésze munkaidejében) GYUR'MA típusú,"]
[45,"K-tétel","MOKO-422500 tetővel",4,"db",0,0,0,0]
[]
[null,null,"PRESTO BATI öblítőtartályos szerelőkeret oldalfali távműködtető egységgel, fali WC-hez bekötöcsővel, kompletten, felszerelve, GYUR'MA típusú,",{"$nulls":5},{"$f":"IF(D137=0,\"\",D137*G137)","v":""}]
[46,"K-tétel","PRESTO-18605",4,"db",0,0,0,0]
[]
[null,null,"Felhajtható kapaszkodó mozgáskorlátozottak részére, falra felszerelve, GYUR'MA típusú, szinterezett acélból"]
[47,"K-tétel","MOKO-048866, 800mm, d=32mm",4,"db",0,0,0,0]
[]
[null,null,"Fix kapaszkodó mozgáskorlátozottak részére, 90°-ban hajlított, falra felszerelve, GYUR'MA típusú, szinterezett acélból"]
[48,"K-tétel","MOKO-15060, 600x600mm, d=32mm",8,"db",0,0,0,0]
[]
[null,null,"Élcsiszolt fali tükör mozgáskorlátozottak részére, 4mm, rögzítő szettel, felszerelve GYUR'MA típusú,"]
[49,"K-tétel","MOKO-900550, 650x1100 mm-es",4,"db",0,0,0,0]
[]
[null,null,"Ajtóbehúzó, GYUR'MA típusú, szinterezett acélból"]
[50,"K-tétel","MOKO-449860, 600mm, d=25mm",4,"db",0,0,0,0]
[]
[null,null,"GÉPÉSZETI BERENDEZÉSEK                                                            Álló melegvíz-termelő, beépített hőcserélő nélkül. A belső felületvédelem kétrétegű beégetett zománcozás. Hőszigetelt burkolat. Beépített magnézium védőanóddal. Csatlakozási lehetőség pótfűtések részére (240mm karima, 6/4\" menetes csonk) Cirkulációs vezeték csatlakozás."]
[51,"K-tétel","HOVAL S 800 P típ., 800 literes HMV tároló",2,"db",0,0,0,0]
[]
[null,null,"Fali tűzcsapszekrény elhelyezése, tartozékokkal összeszerelve, oltó vízvezetékhez, falba süllyesztve, előre kialakított falfülkébe, 1\" (25 szerelvényekkel)"]
[52,"82-021-1.3.1.2-0210415","Csolnoki Szerelvénygyártó V1-D 800x650x250 mm tűzcsapszekrény, CE min., tömlőtartó dobbal, 30 m tömlővel, vízbekötés: 4 előre perf. hely. falba süllyesztett, Csz.: 01 8800 0990 02",6,"db",0,0,0,0]
[]
[null,null,"Palackos kézi tűzoltókészülék falra szerelve, fém vagy műanyag függesztőre porral oltó 6-12 kg töltősúlyig"]
[53,"82-016-10.1.2-0210511","Csolnoki Szerelvénygyártó poroltó 6 kg-os ABC típus, Csz.: 05 0011 0005 00",9,"db",0,0,0,0]
[]
[null,null,"Kétoldalon menetes vagy roppantógyűrűs szerelvény elhelyezése, külső vagy belső menettel, illetve hollandival csatlakoztatva DN 40 gömbcsap, víz- és gázfőcsap"]
[54,"82-001-7.6.2-0130607","MOFÉM AHA Univerzális gömbcsap 6/4\" bb. menettel, vízátbocsátás 590 l/min., névleges méret 40 mm, sárgaréz, natúr, 10 bar, Kód: 113-0052-00",3,"db",0,0,0,0]
[]
[null,null,"DN 50, DN 65 gömbcsap, víz- és gázfőcsap"]
[55,"82-001-7.7.2-0130608","MOFÉM AHA Univerzális gömbcsap 2\" bb. menettel, vízátbocsátás 890 l/min., névleges méret 50 mm, sárgaréz, natúr, 10 bar, Kód: 113-0053-00",4,"db",0,0,0,0]
[]
[null,null,"KONYHAI TERÜLET CSŐVEZETÉK SZERELÉSI MUNKÁI ÉS BERENDEZÉSEINEK SZERELVÉNYEI (CSAK CSATLAKOZÁST BIZTOSÍTUNK, CSAPTELEP ÉS NAGYKONYHAI BERENDEZÉS A KONYHATECHNOLÓGIA SZERINT)                                                                                                    A melegítőkonyha vízellátás-csatornázás szerelési munkái, az alábbi tartalommal:                                                                          - átm.16-20-25-32-es méretű Uponor MLCP típ. vízvezetékek, idomokkal, csőtartóval                                                               - vízvezetékek szigetelése TUBOLIT DG típ. hőszigeteléssel, 9-13mm vast.                                                                            - átm.40-63mm méretű PE ill. KA-PVC csatorna vezetékek, idomokkal                                                                              - NÁ15-25 méretű szakaszoló és elzáró szerelvények, sarok- és kombinált sarokszelepek                                                                      - 1db termosztatikus keverő szelep                                                                     - 1db cirkulációs szelep                                                                                - 6db ipari padlóösszefolyó (ACO EG150-300)                                         - 3db ált. padlóösszefolyó (HL510NPr)                                                        - 3db porcelán kézmosó berendezés kompletten"]
[56,"K-tétel",null,1,"klt.",0,0,0,0]
[]
[null,null,"LABOR HELYISÉG CSŐVEZETÉK SZERELÉSI MUNKÁI A labor vízellátás-csatornázás csővezeték szerelési munkái, az alábbi tartalommal: - átm.16-20-25-ös méretű Uponor MLCP típ. vízvezetékek, idomokkal - vízvezetékek szigetelése TUBOLIT DG típ. hőszigeteléssel, 9-13mm vast. - átm.40-63mm méretű KA-PVC csatorna vezetékek, idomokkal - NÁ15-25 méretű szakaszoló és elzáró szerelvények - termosztatikus keverő szelep - cirkulációs szelep"]
[57,"K-tétel",null,1,"klt",0,0,0,0]
[]
[null,null,"VIZESBLOKKOK CSŐVEZETÉK SZERELÉSI MUNKÁI                                                                                                                        A központi vizesblokkok vízellátás-csatornázás csővezeték szerelési munkái, az alábbi tartalommal:                                       - átm.16-20-25-ös méretű Uponor MLCP típ. vízvezetékek, idomokkal, csőtartóval                                                                 - vízvezetékek szigetelése TUBOLIT DG típ. hőszigeteléssel, 9-13mm vast.                                                                       - átm.40-63mm méretű KA-PVC csatorna vezetékek, idomokkal, csőtartóval                                                                            - NÁ15-25 méretű szakaszoló és elzáró szerelvények                            - termosztatikus keverő szelep                                                                         - cirkulációs szelep                                                                                           - padlóösszefolyó"]
[58,"K-tétel",null,155,"m2",0,0,0,0]
[]
[null,null,"CSŐVEZETÉKEK ÉS SZIGETELÉS CSATORNÁZÁSI CSŐVEZETÉKEK                                                     PVC-KGEM lefolyóvezeték szerelése, tokos, gumigyűrűs kötésekkel, cső elhelyezése csőidomokkal, szakaszos tömörségi próbával, szabadon, csőtartókkal, DN 100"]
[59,"K-tétel","PIPELIFE PVC-U tömörfalú tokos csatornacső 110x3,2x1000 mm SN4, KGEM110/1M-EN",32,"m",0,0,0,0]
[]
[null,null,"DN 125"]
[60,"K-tétel","PIPELIFE PVC-U tömörfalú tokos csatornacső 125x3,2x1000 mm SN4, KGEM125/1M-EN",17,"m",0,0,0,0]
[]
[null,null,"DN 150"]
[61,"K-tétel","PIPELIFE PVC-U tömörfalú tokos csatornacső 160x4,0x1000 mm SN4, KGEM160/1M-EN",15,"m",0,0,0,0]
[]
[null,null,"PE polietilén lefolyócső szerelése csőtartókkal, szakaszos tömörségi próbával, - 80 °C tartós, 95°C rövid ideig tartó hőmérséklet tűréssel- földárokban elektrokarmantyús kötésekkel, csőidomokkal együtt, csőátmérő DN 100 méret felett, DN 110"]
[62,"K-tétel","PIPELIFE cső PE-HD DN110 5m, VD110H-5M",100,"m",0,0,0,0]
[]
[null,null,"DN 125"]
[63,"K-tétel","GEBERIT PE lefolyócső, 5 méteres szálban, 368.000, átmérő 125 x 4,9 mm",15,"m",0,0,0,0]
[]
[null,null,"DN 160"]
[64,"K-tétel","PIPELIFE cső PE-HD DN160 5m, VD160H-5M",3,"m",0,0,0,0]
[]
[null,null,"VÍZVEZETÉKI CSŐVEZETÉKEK                                                       Víz- és fűtési vezeték, Rozsdamentes acélcső szerelése, préselt csőkötésekkel, cső elhelyezése csőidomokkal, szakaszos nyomáspróbával, szabadon, horonyba vagy padlócsatornába, DN 12 - DN 50, DN 20"]
[65,"K-tétel","Viega Sanpress cső, 1.4521 rozsdamentes, 6 m-es szálban, ivóvízellátáshoz, 22 x 1,2 Cikkszám: 616 014",45,"m",0,0,0,0]
[{"$nulls":7},{"$f":"IF(D196=0,\"\",D196*F196)","v":""}]
[null,null,"DN 25"]
[66,"K-tétel","Viega Sanpress cső, 1.4521 rozsdamentes, 6 m-es szálban, ivóvízellátáshoz, 28 x 1,2 Cikkszám: 616 021",12,"m",0,0,0,0]
[]
[null,null,"DN 32"]
[67,"K-tétel","Viega Sanpress cső, 1.4521 rozsdamentes, 6 m-es szálban, ivóvízellátáshoz, 35 x 1,5 Cikkszám: 616 038",135,"m",0,0,0,{"$f":"IF(D201=0,\"\",D201*G201)","v":0}]
[]
[null,null,"DN 50"]
[68,"K-tétel","Viega Sanpress cső, 1.4521 rozsdamentes, 6 m-es szálban, ivóvízellátáshoz, 54 x 1,5 Cikkszám: 616 557",140,"m",0,0,0,0]
[]
[null,null,"DN 65 - DN 100, DN 65"]
[69,"K-tétel","Viega Sanpress XL cső, 1.4521 rozsdamentes, 6 m-es szálban, ivóvízellátáshoz, 76,1 x 2,0 Cikkszám: 616 571",50,"m",0,0,0,0]
[]
[null,null,"SZIGETELÉS HIDEGVÍZ VEZETÉKRE                                         Fűtési, HMV, HHV vezetékek szigetelése (ívek, idomok, szerelvények szigetelése és burkolás nélkül), polietilén csőhéjjal csupasz kivitelben, ragasztással illetve hőlégfúvással hegesztve, öntapadó ragasztó szalag lezárással, vagy klipsszel rögzítve, NÁ 114 mm csőátmérőig"]
[70,"80-001-1.3.2.1.1-0125666","Armacell Tubolit DG csőhéj, falvastagság: 9 mm, külső csőátmérő 35 mm, R: DG-35/9",45,"m",0,0,{"$f":"IF(D210=0,\"\",D210*F210)","v":0},{"$f":"IF(D210=0,\"\",D210*G210)","v":0}]
[]
[71,"80-001-1.3.2.1.1-0125671","Armacell Tubolit DG csőhéj, falvastagság: 9 mm, külső csőátmérő 54 mm, R: DG-54/9",92,"m",0,0,0,0]
[]
[null,null,"SZIGETELÉS MELEGVÍZ VEZETÉKRE                                          Fűtési, HMV, HHV vezetékek szigetelése (ívek, idomok, szerelvények szigetelése és burkolás nélkül), polietilén csőhéjjal csupasz kivitelben, ragasztással illetve hőlégfúvással hegesztve, öntapadó ragasztó szalag lezárással, vagy klipsszel rögzítve, NÁ 114 mm csőátmérőig"]
[72,"80-001-1.3.2.1.1-0125624","Armacell Tubolit DG csőhéj, falvastagság: 13 mm, külső csőátmérő 22 mm, R: DG-22/13",45,"m",0,0,0,0]
[]
[73,"80-001-1.3.2.1.1-0125625","Armacell Tubolit DG csőhéj, falvastagság: 13 mm, külső csőátmérő 28 mm, R: DG-28/13",12,"m",0,0,0,0]
[]
[74,"80-001-1.3.2.1.1-0125626","Armacell Tubolit DG csőhéj, falvastagság: 13 mm, külső csőátmérő 35 mm, R: DG-35/13",90,"m",0,0,0,0]
[]
[75,"80-001-1.3.2.1.1-0125634","Armacell Tubolit DG csőhéj, falvastagság: 13 mm, külső csőátmérő 54 mm, R: DG-54/13",48,"m",0,0,0,0]
[]
[null,null,"TANTERMEK KLÍMA CSEPPVÍZ ELVEZETÉSE Padló alatti illetve falba süllyeszthető bűzelzáró, padló feletti vagy falba süllyeszthető elhelyezése"]
[76,"82-009-21.2-0135119","HL138, Klímaszifon falba süllyesztve kondenzvíz és cseppgyűjtéshez DN32 függőleges kimenettel. A kiszáradás esetén is bűzzáró (kettős működésű) bűzzár-kazetta kihúzható, és tisztítható, vagy cserélhető. Bemenete {átmérő} 20 - 32mm-es csővel vagy tömlővel. A beépítőház a végleges beépítési mélységre állítható. Min beépítési mélység 60mm",13,"db",0,0,0,0]
[]
[null,null,"PVC lefolyóvezeték szerelése, ragasztott kötésekkel, cső elhelyezése csőidomokkal, szakaszos tömörségi próbával, falhoronyba vagy padlócsatornába (horonyvésés külön tételben), DN 25"]
[77,"K-tétel","PIPELIFE PVC-U sima lefolyócső",60,"m",0,0,0,0]
[]
[null,null,"DN 32"]
[78,"81-002-3.1.1.1.2-0131112","PIPELIFE PVC-U sima lefolyócső 32x1,8x2000 mm, KAGL032/2M",100,"m",0,0,0,0]
[]
[null,null,"SZAKIPARI MUNKÁK                                                                        Áttörés vezetékek részére, helyreállítással, 0,1 m2/db méretig, tégla válaszfalban"]
[79,"33-062-1.1",null,50,"db",0,0,0,0]
[]
[null,null,"felmenő téglafalban, 25-38 cm vastagság között"]
[80,"33-062-1.2.1",null,20,"db",0,0,0,0]
[]
[null,null,"felmenő téglafalban,"]
[81,"K-tétel","38 cm vastagság felett",3,"db",0,0,0,0]
[]
[null,null,"Lyukfúrás vasbetonba, 50-100 mm átmérő között"]
[82,"K-tétel","átmérő 100mm méretben",18,"m",0,0,{"$f":"IF(D242=0,\"\",D242*F242)","v":0},{"$f":"IF(D242=0,\"\",D242*G242)","v":0}]
[]
[null,null,"Horonyvésés, téglafalban, 24,01-50,00 cm2 keresztmetszet között, helyreállítással"]
[83,"33-063-3.2.4",null,370,"m",0,0,0,0]
[]
[null,null,"Víz,- csatornaszerelési munkák próbái, vízvezetéki lefolyórendszer tömörségi próbája"]
[84,"K-tétel",null,1,"klt.",0,0,0,0]
[]
[null,null,"vízvezetéki nyomórendszer nyomáspróbája"]
[85,"K-tétel",null,1,"klt.",0,0,0,0]
[]
[null,null,"vezetékrendszer fertőtlenítése"]
[86,"K-tétel",null,1,"klt.",0,0,0,0]
[]
[null,null,"Víz,- csatornaszerelési munkák átadás-átvételi eljárásával kapcsolatos költségek átadási dokumentáció készítés"]
[87,"K-tétel",null,1,"klt.",0,0,0,0]
[]
[null,null,"átadási eljárás lefolytatása"]
[88,"K-tétel",null,1,"klt.",0,0,0,0]
[]
[null,null,"kezelési utasítás készítés"]
[89,"K-tétel",null,1,"klt.",0,0,0,0]
[]
[null,null,"kezelésre vonatkozó kioktatás",{"$nulls":5},{"$f":"IF(D265=0,\"\",D265*G265)","v":""}]
[90,"K-tétel",null,1,"klt.",0,0,0,0]
[]
[null,null,"Negatív vízminta, ÁNTSZ engedély beszerzésével"]
[91,"K-tétel",null,1,"klt",0,0,0,0]
[]
[{"$nulls":7},{"$f":"SUM(H3:H269)","v":0},{"$f":"SUM(I3:I269)","v":0}]

{"sheet":"II. ÜTEM - FŰTÉS","index":2,"n_rows":321,"n_cols":9,"rows_kept":321,"headers":{"header":["VERESEGYHÁZI KATOLIKUS GIMNÁZIUM 2112 Veresegyház, Fő út 117-125., hrsz.: 58 AJÁNLATADÁSI TERV","","2017.08.11."],"footer":["TEVIM Kft."]}}
["No.","  Azonosító","  Szöveg","Mennyiség","Egys.","Anyagár","Óradij","xAnyagár","xÓradij"]
[]
[null,null,"Föld- vagy PB gáz tüzelésű, melegvízüzemű, alumínium öntvény kazán elhelyezése, bekötése, 80,01-120 kW teljesítmény között"]
[1,"K-tétel","Hoval TopGas Classic 100 típ.                                                                          Fali kondenzációs gázkazán 19,1 - 90,4 kW teljesítmény cikkszám: 7014 584                                                         Kondenzációs technikával Korrózióálló öntött alumínium ötvözetből készült hőcserélővel Felszereltség: -- Nyomásmérő -- víznyomás határoló vízhiány biztosításhoz -- Égéstermék-hőmérsékletérzékelő határoló funkcióval -- Automatikus légtelenítő Rozsdamentes acélból készült előkeveréses felületi égő -- folyamatos égőszabályozás, gáz/levegő arányszabályozással -- automatikus gyújtás -- ionizációs lángőrzés -- gáznyomáskapcsoló Minimális átfolyási vízmennyiség szükséges (lásd Műszaki adatok fejezet) Fali kondenzációs gázkazán, acéllemez burkolattal, fehér színben Kazán alapvezérlés N4.1 BIC 335 típusú tüzelésvezérlő automatika felügyeleti egységgel Modulált égőszabályozás Főkapcsoló I/O Üzemállapot- és zavarjelzés Csatlakozás külső gázszelephez és zavarjelző kimenethez",3,"db",0,0,{"$f":"IF(D4=0,\"\",D4*F4)","v":0},{"$f":"IF(D4=0,\"\",D4*G4)","v":0}]
[{"$nulls":8},{"$f":"IF(D5=0,\"\",D5*G5)","v":""}]
[null,null,"Időjáráskövető kazán és fűtésköri szabályzás. TopTronic® E ZE1 fűtésszabályozó-szett G04 típusú kazán alapvezérlés kiegészítéseként (beépíthető). TopTronic® E kezelőegység Érintőképernyő; 4,3 coll Egyszerű, intuitív kezelési koncepció A legfontosabb működési állapotok kijelzése Beállítható kezdőképernyő Működési mód kiválasztása Beállítható napi és heti programok Az összes csatlakoztatott Hoval CAN-bus modul kezelése Üzembe helyezési segédlet Szerviz- és karbantartási funkciók Zavarjelzés Elemző funkció Időjárás kijelző (online opciónál) Fűtési stratégia illesztése időjárás-előrejelzés alapján (online opciónál) TopTronicR E hőtermelő-alapmodul (TTE-WEZ) . Beépített fűtésszabályozó -- 1 közvetlen fűtési körhöz -- 1 kevertkörhöz -- HMV-termeléshez -- Bivalens- és kaszkádmenedzsmenthez . Rast5 alap csatlakozo készlet . Külső érzékelő . Merulő érzékelő (HMV-termelő érzékelő) . Előremenő hőmérseklet-érzékelő . ZE1 kábelcsoport a TopTronicR E fűtésszabályozó és a kazánvezérlés összekapcsolásához"]
[2,"K-tétel",null,3,null,0,0,0,0]
[]
[null,null,"GLT Modul 0-10 V/OT (OpenTherm) (épületfelügyeleti rendszer) Kazánok vezérléséhez épületfelügyeleti rendszerrel összekapcsolva Hőmérséklet-szabályozás külsőleg 0-10 V 0 - 1,0 V nincs követés 1,0 - 9,5 V ...... 0 °C - 100 °C A kazán-kapcsolótáblába beépíthető!"]
[3,"K-tétel",null,3,"db",0,0,0,0]
[]
[null,null,"Változó nyomású zárt tágulási tartály fűtési és hűtési rendszerek számára, nem cserélhető membránnal, maximális hőmérséklet a membránon 70°C, 1,5 bar légoldali előfeszítéssel, gyári tartozékkal, felszerelve, REFLEX \"NG\" típusú, 6 bar/120°C"]
[4,"K-tétel","NG  8 j.  8 literes",3,"db",0,0,0,0]
[]
[null,null,"Gyorscsatlakozó szelep avatatlan elzárás elleni biztosítással, ürítő csonkkal, 10 bar/120°C, felszerelve, REFLEX gyártmányú, \"SU\" típusú"]
[5,"K-tétel","SU 3/4\" x 3/4\"             RX 7613000",1,"db",0,0,0,0]
[]
[null,null,"Kétoldalon menetes vagy roppantógyűrűs szerelvény elhelyezése, külső vagy belső menettel, illetve hollandival csatlakoztatva DN 20 biztonsági szerelvény"]
[6,"82-001-7.3.8-0722333","Flamco Prescor 3/4\" x 3/4\" membrános biztonsági szelep max. 140 °C, 3 bar, Rendelési szám: 27025",3,"db",0,0,0,0]
[]
[null,null,"Fűtés-, klíma-, hűtéstechnika nedvestengelyű nagyhatásfokú szabályozott szivattyú, menetes vagy karimás kötéssel, egyes szivattyúk, DN 30/32"]
[7,"K-tétel","Grundfos MAGNA1 32-60 1x230V, Szabályozott nedvestengelyű keringetőszivattyú, A-energiaosztály, menetes csz.:GR97924163",3,"db",0,0,0,0]
[]
[8,"K-tétel","Grundfos MAGNA1 32-60 F 220 1x230V PN6/10, Szabályozott nedvestengelyű keringetőszivattyú, A-energiaosztály, karimás",1,"db",0,0,0,0]
[]
[9,"K-tétel","Grundfos MAGNA3 32-100 F 220 1x230V PN6/10, Szabályozott nedvestengelyű keringetőszivattyú, A-energiaosztály, AUTOADAPT funkcióval, karimás",1,"db",0,0,0,0]
[]
[null,null,"DN 40"]
[10,"K-tétel","Grundfos MAGNA1 40-80 F 220 1x230V PN6/10, Szabályozott nedvestengelyű keringetőszivattyú, A-energiaosztály,karimás",1,"db",0,0,0,0]
[]
[11,"82-008-3.1.4.1.3-0150804","Grundfos MAGNA3 40-120 F 250 1x230V PN6/10, Szabályozott nedvestengelyű keringetőszivattyú, A-energiaosztály, AUTOADAPT funkcióval, karimás",1,"db",0,0,0,0]
[]
[null,null,"Kétoldalon menetes vagy roppantógyűrűs szerelvény elhelyezése, külső vagy belső menettel, illetve hollandival csatlakoztatva DN 50, DN 65 gömbcsap, víz- és gázfőcsap"]
[12,"82-001-7.7.2-0130608","MOFÉM AHA Univerzális gömbcsap 2\" bb. menettel, vízátbocsátás 890 l/min., névleges méret 50 mm, sárgaréz, natúr, 10 bar, Kód: 113-0053-00",8,"db",0,0,0,0]
[]
[null,null,"Karima közé építhető szerelvény elhelyezése ellenkarimákkal, DN 65  PN 40-ig pillangószelep"]
[13,"82-001-5.7.7-0140382","MVV-ISG gumibélésű pillangószelep EPDM kézikarral, PN 16 DN  65",11,"db",0,0,0,0]
[]
[null,null,"DN 65  PN 40-ig szelepek, csappantyúk (szabályzó, beavatkozó)"]
[14,"82-001-5.7.3-0140507","MVV-ISG RETURNVENT visszacsapószelep, bronzházzal, vízre, PN 6-16 DN 65",3,"db",0,0,0,0]
[]
[null,null,"Kétoldalon menetes vagy roppantógyűrűs szerelvény elhelyezése, külső vagy belső menettel, illetve hollandival csatlakoztatva DN 15 szelepek, csappantyúk (szabályzó, folytó-elzáró, beavatkozó)"]
[15,"82-001-7.2.1-0114001","TA STAD BB beszabályozó szelep PN 20 mérőcsonkkal, DN 15, Cikkszám: 52-151-014",5,"db",0,0,0,0]
[]
[null,null,"DN 20 szelepek, csappantyúk (szabályzó, folytó-elzáró, beavatkozó)"]
[16,"82-001-7.3.1-0114002","TA STAD BB beszabályozó szelep PN 20 mérőcsonkkal, DN 20, Cikkszám: 52-151-020",12,"db",0,0,0,0]
[]
[null,null,"DN 32 szelepek, csappantyúk (szabályzó, folytó-elzáró, beavatkozó)"]
[17,"82-001-7.5.1-0114004","TA STAD BB beszabályozó szelep PN 20 mérőcsonkkal, DN 32, Cikkszám: 52-151-032",3,"db",0,0,0,0]
[]
[null,null,"Kétoldalon menetes vagy roppantógyűrűs szerelvény elhelyezése, külső vagy belső menettel, illetve hollandival csatlakoztatva DN 40 szelepek, csappantyúk (szabályzó, folytó-elzáró, beavatkozó)"]
[18,"82-001-7.6.1-0114005","TA STAD BB beszabályozó szelep PN 20 mérőcsonkkal, DN 40, Cikkszám: 52-151-040",4,"db",0,0,0,0]
[]
[null,null,"DN 50, DN 65 szelepek, csappantyúk (szabályzó, folytó-elzáró, beavatkozó)"]
[19,"82-001-7.7.1-0114006","TA STAD BB beszabályozó szelep PN 20 mérőcsonkkal, DN 50, Cikkszám: 52-151-050",1,"db",0,0,0,0]
[]
[null,null,"Kétoldalon karimás szerelvény elhelyezése ellenkarimákkal, DN 65 PN 10 - PN 16, szelepek, csappantyúk (szabályzó, folytó-elzáró, beavatkozó)"]
[20,"82-001-2.16.1-0114037","TA STAF karimás beszabályozó szelep mérőcsonkkal, DN 65, PN 16, szürkeöntvény, 120 °C, Cikkszám:52-181-065",1,"db",0,0,0,0]
[]
[null,null,"Kombinált szabályozó és beszabályozó szelep, állandó EQM karakterisztikával, szelepemelkedés 20mm, beépítése"]
[21,"K-tétel","TA Fusion-C 32 DN32",1,null,0,0,0,0]
[]
[22,"K-tétel","TA Fusion-C 40 DN40",1,null,0,0,0,0]
[]
[null,null,"Kétoldalon menetes vagy roppantógyűrűs szerelvény elhelyezése, külső vagy belső menettel, illetve hollandival csatlakoztatva DN 40 szelepek, csappantyúk (szabályzó, folytó-elzáró, beavatkozó)"]
[23,"82-001-7.6.1-0113891","TA STAP nyomáskülönbség-szabályozó szelep PN 16 DN 40, beállítási tartomány: 10-40 kPa, Cikkszám: 52-265-140",2,"db",0,0,0,0]
[]
[null,null,"Három- vagy négyoldalon menetes vagy roppantógyűrűs szerelvény elhelyezése, külső vagy belső menettel, illetve hollandival csatlakoztatva DN 25",{"$nulls":4},{"$f":"IF(D68=0,\"\",D68*F68)","v":""}]
[24,"82-001-13.3-0324187","SIEMENS VXG44.25-10, Kétutú külső menetes szabályozószelep, 5.5 mm szelepszár elmozdulással, DN25 kvs=10, javasolt ALG253 csatlakozó hollandi a beépítéshez, PN16, Alkalmazható szelepmozgatók: SSY319, SQS35.., SQS65.., SQS85... Keverő és osztó alkalmazásban is használhatók!, Csz.: VXG44.25-10",1,"db",0,0,0,{"$f":"IF(D69=0,\"\",D69*G69)","v":0}]
[]
[null,null,"DN 32"]
[25,"82-001-13.4-0324188","SIEMENS VXG44.32-16, Kétutú külső menetes szabályozószelep, 5.5 mm szelepszár elmozdulással, DN32 kvs=16, javasolt ALG323 csatlakozó hollandi a beépítéshez, PN16, Alkalmazható szelepmozgatók: SSY319, SQS35.., SQS65.., SQS85... Keverő és osztó alkalmazásban is használhatók!, Csz.: VXG44.32-16",1,"db",0,0,0,0]
[]
[null,null,"Két- és háromjáratú szelepekhez, elektrotermikus és elektromotoros hajtóművek elhelyezése, elektromos bekötés nélkül"]
[26,"82-001-14.1-0324265","SIEMENS SQS35.53, 5,5mm szelepszár elmozdulású szelepmozgató motor, 3-pont működés, 35sec futásidő, AC230V, rugós visszatérítéssel, IP54, Csz.:SQS35.53",2,"db",0,0,0,0]
[]
[null,null,"Kétoldalon menetes vagy roppantógyűrűs szerelvény elhelyezése, külső vagy belső menettel, illetve hollandival csatlakoztatva DN 15 gömbcsap, víz- és gázfőcsap"]
[27,"82-001-7.2.2-0130525","MOFÉM kazántöltőcsap 1/2\" névleges méret 15 mm, sárgaréz, natúr, 16 bar, Kód: 113-0010-00",8,"db",0,0,0,0]
[]
[null,null,"Manométer elhelyezése, lemezházas"]
[28,"82-005-16.2-0120122","Manométer lemezházas, M 20 x 1,5 menettel 1,6 % pontossággal PM 1012 típus, átmérő 100 mm Méréshatár: 0-4.0;0-6.0;0-10;0-16;0-25 bar",8,"db",0,0,0,0]
[]
[null,null,"Hőmérő elhelyezése, könyök hőmérő, kicsi"]
[29,"82-005-17.2.1-0213706","Védőszerelvényes ipari hőmérő, MSZ 11210/2-72 kis könyök hőmérő 0 C-tól 160 C 63 mm benyúlással",8,"db",0,0,0,0]
[]
[null,null,"Egyoldalon menetes szerelvény elhelyezése, külső vagy belső menettel, illetve hollandival csatlakoztatva DN 15 légtelenítőszelep, kifolyó- és locsolószelep, töltőszelep"]
[30,"82-001-6.2.8-0722155","Flamco Flexvent Super 1/2\" úszós légtelenítő max. 120°C , 10 bar, elzáróelemmel Rendelési szám: 28520",6,"db",0,0,0,0]
[]
[null,null,"Egyoldalon menetes szerelvény elhelyezése, külső vagy belső menettel, illetve hollandival csatlakoztatva DN 15 légtelenítőszelep, kifolyó- és locsolószelep, töltőszelep"]
[31,"82-001-6.2.8-0722153","Flamco Flexvent 1/2\" úszós légtelenítő max. 120 °C, 10 bar, elzáróelemmel, Rendelési szám: 27740",8,"db",0,0,0,0]
[]
[null,null,"Légedény elhelyezése és bekötése, tartószerkezet beépítésével, 159x4,5 mm - 350 mm 219x6,3 mm - 400 mm"]
[32,"82-004-9.3-0460534","Kettős légedény F-65 típus 159x4,5 mm",4,"db",0,0,0,0]
[]
[null,null,"Fűtési vezeték, Ötrétegű cső szerelése, PE-RT/Alu/PE-RT anyagból, kiegészítők elhelyezése, fűtési osztó - gyűjtő szerelése, 6 áramkörig"]
[33,"81-004-1.3.2.4.1.2-0332534","Uponor H osztó-gyűjtő, 1\", 5 kör - 272 mm, Cikkszám: 1012880",2,"db",0,0,0,0]
[]
[34,"81-004-1.3.2.4.1.2-0332535","Uponor H osztó-gyűjtő, 1\", 6 kör - 322 mm, Cikkszám: 1012881",1,"db",0,0,0,0]
[]
[35,"81-004-1.3.2.4.1.3-0332536","Uponor H osztó-gyűjtő, 1\", 7 kör - 372 mm, Cikkszám: 1012882",2,"db",0,0,0,0]
[]
[36,"81-004-1.3.2.4.1.3-0332538","Uponor H osztó-gyűjtő, 1\", 9 kör - 472 mm, Cikkszám: 1012884",1,"db",0,0,0,0]
[]
[null,null,"Padlófűtés, Ötrétegű cső szerelése, PE-RT/Al/PE-RT, PE-RT/EVOH/PE-RT anyagú, osztó-gyűjtő egység komplett, tartókonzolra szerelve, végelemmel, légtelenítővel, töltőürítővel, körönként tartóval, szeleppel, csatlakozó csavarzat nélkül, 6 körig"]
[37,"81-005-1.5.2.4.1.1-0333341","Uponor Vario Plus osztó-gyűjtő áramlásmérővel, 4 körös - 212 mm, Cikkszám: 1030584",9,"db",0,0,0,0]
[]
[38,"81-005-1.5.2.4.1.1-0333342","Uponor Vario Plus osztó-gyűjtő áramlásmérővel, 6 körös - 300 mm, Cikkszám: 1030585",5,"db",0,0,0,0]
[]
[null,null,"kiegészítő elemek elhelyezése, osztó - gyűjtő tartozékok és szerelvények elhelyezése, menetes kötéssel csatlakoztatva"]
[39,"81-005-1.5.2.6.3-0333343","Uponor Vario Plus osztó-gyűjtő tartó, hőmérővel, légtelenítővel, töltő-ürítővel,by-pass elemmel, Cikkszám: 1009209",9,"db",0,0,0,0]
[]
[null,null,"Padlófűtés, Ötrétegű cső szerelése, PE-RT/Al/PE-RT, PE-RT/EVOH/PE-RT anyagú, kiegészítő elemek elhelyezése, falba süllyeszthető vagy falsík elé építhető horganyzott acéllemez szekrények, kőműves munka nélkül"]
[40,"81-005-1.5.2.6.4-0333365","Uponor Vario osztószekrény, falon kívüli 820x555mm, Cikkszám: 1046996",7,"db",0,0,0,0]
[]
[41,"81-005-1.5.2.6.4-0333367","Uponor Vario osztószekrény, falon kívüli 820x785mm, Cikkszám: 1046998",6,"db",0,0,0,0]
[]
[42,"81-005-1.5.2.6.4-0333368","Uponor Vario osztószekrény, falon kívüli 820x950mm, Cikkszám: 1046999",2,"db",0,0,0,0]
[]
[null,null,"Három- vagy négyoldalon menetes vagy roppantógyűrűs szerelvény elhelyezése, külső vagy belső menettel, illetve hollandival csatlakoztatva DN 25"]
[43,"82-001-13.3-0324163","SIEMENS VXI46.25, DN25 kétutú váltószelep, nyit/zár működés, 2,5mm szelepszár elmozdulás, belső menetes kialakítás, PN16, Csz.:VXI46.25",1,"db",0,0,0,0]
[]
[null,null,"Kétoldalon menetes vagy roppantógyűrűs szerelvény elhelyezése, külső vagy belső menettel, illetve hollandival csatlakoztatva DN 25 szelepek, csappantyúk (szabályzó, folytó-elzáró, beavatkozó)"]
[44,"82-001-7.4.1-0324153","SIEMENS VVI46.25, DN25 egyutú zónaszelep, nyit/zár működés, 2,5mm szelepszár elmozdulás, belső menetes kialakítás, PN16, Csz.:VVI46.25",8,"db",0,0,0,0]
[]
[null,null,"Két- és háromjáratú szelepekhez, elektrotermikus és elektromotoros hajtóművek elhelyezése, elektromos bekötés nélkül"]
[45,"82-001-14.1-0324252","SIEMENS STA23, 2,5mm szelepszár elmozdulású termoelektromos szelepmozgató motor VVI46.. és VXI46.. típusú szelepekhez és VD.. VE.. radiátorszelepekhez, 2-pont működés, hangtalan üzem, elmozdulás kijelzés, 2-3 perc futásidő, AC230V, Csz.: STA23",9,"db",0,0,0,0]
[]
[null,null,"Elektromos kapcsoló-berendezések elhelyezése, elektromos bekötés nélkül, hőmérséklet kapcsoló (szobatermosztát)"]
[46,"82-013-11.5-0324002","SIEMENS RAA21, mechanikus szobatermosztát, külső forgatógombbal (fűtés vagy hűtés szabályozására, kb.1K kapcsolási különbség, standard kivitel), Csz.:RAA21",9,"db",0,0,0,0]
[]
[null,null,"Padlófűtés, Térhálósított polietilén cső (PE-Xa) szerelése, 9,9x1,1; 14x2,0; 16x2,0; 17x2,0 mm-es fűtőcsőből, fektetés lépésálló sík szigetelőlemezre, csőrögzítő tüskével, osztás: 0,10 m"]
[47,"81-005-1.2.1.4.1-0333401","Uponor Comfort PLUS PE-Xa fűtési cső, 17x2,0 mm, 120 m-es tekercsben, PN6, Cikkszám: 1034535",11,"m2",0,0,{"$f":"IF(D132=0,\"\",D132*F132)","v":0},0]
[{"$nulls":8},{"$f":"IF(D133=0,\"\",D133*G133)","v":""}]
[null,null,"osztás: 0,15 m"]
[48,"81-005-1.2.1.4.2-0333401","Uponor Comfort PLUS PE-Xa fűtési cső, 17x2,0 mm, 120 m-es tekercsben, PN6, Cikkszám: 1034535",230,"m2",0,0,0,0]
[]
[null,null,"osztás: 0,20 m"]
[49,"81-005-1.2.1.4.3-0333401","Uponor Comfort PLUS PE-Xa fűtési cső, 17x2,0 mm, 120 m-es tekercsben, PN6, Cikkszám: 1034535",900,"m2",0,0,0,0]
[]
[null,null,"Acéllemez kompakt lapradiátor elhelyezése, széthordással, tartókkal, bekötéssel, 2 soros, 1600 mm-ig, 600 mm"]
[50,"82-012-3.2.1.4-0425754","D-ÉG Dunaferr LUX-UNI univerzális hat csatl.lapradiátor DK (22 típus), 2-soros, 2 konvektorlemezes, burkolattal, 600x 400 mm, fűtőteljesítmény:  648 W",5,"db",0,0,0,0]
[]
[51,"82-012-3.2.1.4-0425756","D-ÉG Dunaferr LUX-UNI univerzális hat csatl.lapradiátor DK (22 típus), 2-soros, 2 konvektorlemezes, burkolattal, 600x 600 mm, fűtőteljesítmény:  973 W",1,"db",0,0,0,0]
[]
[52,"82-012-3.2.1.4-0425757","D-ÉG Dunaferr LUX-UNI univerzális hat csatl.lapradiátor DK (22 típus), 2-soros, 2 konvektorlemezes, burkolattal, 600x 700 mm, fűtőteljesítmény: 1135 W",3,"db",0,0,0,0]
[]
[53,"82-012-3.2.1.4-0425758","D-ÉG Dunaferr LUX-UNI univerzális hat csatl.lapradiátor DK (22 típus), 2-soros, 2 konvektorlemezes, burkolattal, 600x 800 mm, fűtőteljesítmény: 1297 W",2,"db",0,0,0,0]
[]
[54,"82-012-3.2.1.4-0425759","D-ÉG Dunaferr LUX-UNI univerzális hat csatl.lapradiátor DK (22 típus), 2-soros, 2 konvektorlemezes, burkolattal, 600x 900 mm, fűtőteljesítmény: 1459 W",9,"db",0,0,0,0]
[]
[55,"82-012-3.2.1.4-0425761","D-ÉG Dunaferr LUX-UNI univerzális hat csatl.lapradiátor DK (22 típus), 2-soros, 2 konvektorlemezes, burkolattal, 600x1100 mm, fűtőteljesítmény: 1783 W",1,"db",0,0,0,0]
[]
[56,"82-012-3.2.1.4-0425762","D-ÉG Dunaferr LUX-UNI univerzális hat csatl.lapradiátor DK (22 típus), 2-soros, 2 konvektorlemezes, burkolattal, 600x1200 mm, fűtőteljesítmény: 1945 W",2,"db",0,0,0,0]
[]
[57,"82-012-3.2.1.4-0425763","D-ÉG Dunaferr LUX-UNI univerzális hat csatl.lapradiátor DK (22 típus), 2-soros, 2 konvektorlemezes, burkolattal, 600x1300 mm, fűtőteljesítmény: 2107 W",5,"db",0,0,0,0]
[]
[58,"82-012-3.2.1.4-0425764","D-ÉG Dunaferr LUX-UNI univerzális hat csatl.lapradiátor DK (22 típus), 2-soros, 2 konvektorlemezes, burkolattal, 600x1400 mm, fűtőteljesítmény: 2269 W",2,"db",0,0,0,0]
[]
[59,"82-012-3.2.1.4-0425765","D-ÉG Dunaferr LUX-UNI univerzális hat csatl.lapradiátor DK (22 típus), 2-soros, 2 konvektorlemezes, burkolattal, 600x1500 mm, fűtőteljesítmény: 2432 W",3,"db",0,0,0,0]
[]
[60,"82-012-3.2.1.4-0425766","D-ÉG Dunaferr LUX-UNI univerzális hat csatl.lapradiátor DK (22 típus), 2-soros, 2 konvektorlemezes, burkolattal, 600x1600 mm, fűtőteljesítmény: 2594 W",2,"db",0,0,0,0]
[]
[null,null,"900 mm"]
[61,"82-012-3.2.1.6-0426054","D-ÉG Dunaferr LUX-UNI univerzális hat csatl.lapradiátor DK (22 típus), 2-soros, 2 konvektorlemezes, burkolattal, 900x 400 mm, fűtőteljesítmény:  907 W",1,"db",0,0,0,0]
[]
[62,"82-012-3.2.1.6-0426055","D-ÉG Dunaferr LUX-UNI univerzális hat csatl.lapradiátor DK (22 típus), 2-soros, 2 konvektorlemezes, burkolattal, 900x 500 mm, fűtőteljesítmény: 1134 W",1,"db",0,0,0,0]
[]
[63,"82-012-3.2.1.6-0426056","D-ÉG Dunaferr LUX-UNI univerzális hat csatl.lapradiátor DK (22 típus), 2-soros, 2 konvektorlemezes, burkolattal, 900x 600 mm, fűtőteljesítmény: 1360 W",1,"db",0,0,0,0]
[]
[64,"82-012-3.2.1.6-0426057","D-ÉG Dunaferr LUX-UNI univerzális hat csatl.lapradiátor DK (22 típus), 2-soros, 2 konvektorlemezes, burkolattal, 900x 700 mm, fűtőteljesítmény: 1587 W",3,"db",0,0,0,0]
[]
[65,"82-012-3.2.1.6-0426058","D-ÉG Dunaferr LUX-UNI univerzális hat csatl.lapradiátor DK (22 típus), 2-soros, 2 konvektorlemezes, burkolattal, 900x 800 mm, fűtőteljesítmény: 1814 W",3,"db",0,0,0,0]
[]
[66,"82-012-3.2.1.6-0426061","D-ÉG Dunaferr LUX-UNI univerzális hat csatl.lapradiátor DK (22 típus), 2-soros, 2 konvektorlemezes, burkolattal, 900x1100 mm, fűtőteljesítmény: 2494 W",1,"db",0,0,0,0]
[]
[67,"82-012-3.2.1.6-0426066","D-ÉG Dunaferr LUX-UNI univerzális hat csatl.lapradiátor DK (22 típus), 2-soros, 2 konvektorlemezes, burkolattal, 900x1600 mm, fűtőteljesítmény: 3627 W",2,"db",0,0,0,0]
[]
[null,null,"3 soros, 1600 mm-ig, 300 mm"]
[68,"82-012-3.3.1.1-0425196","D-ÉG Dunaferr LUX-UNI univerzális hat csatl.lapradiátor DKEK (33 típus), 3-soros 3 konvektorlemezes, burkolattal, 300x1600 mm, fűtőteljesítmény: 2131 W",6,"db",0,0,0,0]
[]
[69,"82-012-3.3.1.1-0425188","D-ÉG Dunaferr LUX-UNI univerzális hat csatl.lapradiátor DKEK (33 típus), 3-soros 3 konvektorlemezes, burkolattal, 300x 800 mm, fűtőteljesítmény: 1066 W",8,"db",0,0,0,0]
[]
[null,null,"1600 mm felett, 300 mm"]
[70,"82-012-3.3.2.1-0425198","D-ÉG Dunaferr LUX-UNI univerzális hat csatl.lapradiátor DKEK (33 típus), 3-soros 3 konvektorlemezes, burkolattal, 300x1800 mm, fűtőteljesítmény: 2398 W",4,"db",0,0,0,0]
[]
[null,null,"3 soros, 1600 mm-ig, 600 mm"]
[71,"82-012-3.3.1.4-0425790","D-ÉG Dunaferr LUX-UNI univerzális hat csatl.lapradiátor DKEK (33 típus), 3-soros 3 konvektorlemezes, burkolattal, 600x1000 mm, fűtőteljesítmény: 2277 W",1,"db",0,0,0,0]
[]
[72,"82-012-3.3.1.4-0425794","D-ÉG Dunaferr LUX-UNI univerzális hat csatl.lapradiátor DKEK (33 típus), 3-soros 3 konvektorlemezes, burkolattal, 600x1400 mm, fűtőteljesítmény: 3188 W",3,"db",0,0,0,0]
[]
[73,"82-012-3.3.1.4-0425795","D-ÉG Dunaferr LUX-UNI univerzális hat csatl.lapradiátor DKEK (33 típus), 3-soros 3 konvektorlemezes, burkolattal, 600x1500 mm, fűtőteljesítmény: 3416 W",3,"db",0,0,0,0]
[]
[null,null,"900 mm"]
[74,"82-012-3.3.1.6-0426086","D-ÉG Dunaferr LUX-UNI univerzális hat csatl.lapradiátor DKEK (33 típus), 3-soros 3 konvektorlemezes, burkolattal, 900x 600 mm, fűtőteljesítmény: 1855 W",2,"db",0,0,0,0]
[]
[75,"82-012-3.3.1.6-0426092","D-ÉG Dunaferr LUX-UNI univerzális hat csatl.lapradiátor DKEK (33 típus), 3-soros 3 konvektorlemezes, burkolattal, 900x1200 mm, fűtőteljesítmény: 3710 W",3,"db",0,0,{"$f":"IF(D196=0,\"\",D196*F196)","v":0},0]
[{"$nulls":8},{"$f":"IF(D197=0,\"\",D197*G197)","v":""}]
[76,"82-012-3.3.1.6-0426094","D-ÉG Dunaferr LUX-UNI univerzális hat csatl.lapradiátor DKEK (33 típus), 3-soros 3 konvektorlemezes, burkolattal, 900x1400 mm, fűtőteljesítmény: 4329 W",1,"db",0,0,0,0]
[]
[null,null,"Fűtőtestszelep, beépített szelepes, vagy hatpontos fűtőtestekhez felszerelve, DANFOSS RA-2000 típusú, kézi előbeállítási lehetőség 14 fokozatban, kvs tartomány: 0,04-1,40 m3/h,"]
[77,"K-tétel","1/2\" 013G0380",161,"db",0,0,0,0]
[]
[null,null,"Csatlakozó szerelvények felszerelése, 1/2\" belső menetes (beépített szelepkészlettel szerelt hőleadókhoz)"]
[78,"82-001-29.1-0113323","Danfoss RLV-K zárópajzsos szelep, töltés-ürítés funkcióval, beépített szelepes fűtőtestekhez, fal felöli csatl., 003L0282, 1/2\"",161,"db",0,0,0,0]
[]
[null,null,"Termosztatikus szelepfej felszerelése radiátorszelepre, KLAPP csatlakozóval rögzítve"]
[79,"82-001-17.1.1-0113257","Danfoss termosztatikus fej beépített érzékelővel, rongálás ellen védett, 013G2920, RA 2920, 5-26°C",161,"db",0,0,0,0]
[]
[null,null,"Fűtési vezeték, Ötrétegű cső szerelése, PE-RT/Alu/PE-RT anyagból, préshüvelyes kötésekkel, csőidomok elhelyezése, egy préscsatlakozású csőidom, DN 12"]
[80,"81-004-1.3.2.1.2.1.1-0332242","Uponor hollandis csatlakozó prés csatlakozó, 16x1/2\" bm, ónozott rézötvözet, Cikkszám: 1015270",322,"db",0,0,0,0]
[]
[null,null,"Fűtési vezeték, Ötrétegű cső szerelése, PE-RT/Alu/PE-RT anyagból, kiegészítők elhelyezése, fűtési osztó - gyűjtő szerelése, fűtési vezeték kiegészítő elemeinek felszerelése"]
[81,"81-004-1.3.2.4.3-0332550","Uponor dupla rozetta, fehér, 14/16/18/20, Cikkszám: 1011373",161,"db",0,0,0,0]
[]
[null,null,"Fűtési vezeték, Fekete acélcső szerelése, hegesztett kötésekkel, tartószerkezettel, szakaszos nyomáspróbával, szabadon, horonyba vagy padlócsatornába, irányváltozás csőhajlítással, DN 15"]
[82,"81-004-1.4.1.1.1.2-0110007","Fekete acélcső MSZ 120/1 A 37X 1/2\" simavégű",10,"m",0,0,0,0]
[]
[null,null,"DN 20"]
[83,"81-004-1.4.1.1.1.3-0110010","Fekete acélcső MSZ 120/1 A 37X 3/4\" simavégű",15,"m",0,0,0,0]
[]
[null,null,"DN 25"]
[84,"81-004-1.4.1.1.1.4-0110013","Fekete acélcső MSZ 120/1 A 37X 1\" simavégű",10,"m",0,0,0,0]
[]
[null,null,"DN 32"]
[85,"81-004-1.4.1.1.1.5-0110016","Fekete acélcső MSZ 120/1 A 37X 5/4\" simavégű",145,"m",0,0,0,0]
[]
[null,null,"DN 40"]
[86,"81-004-1.4.1.1.1.6-0110019","Fekete acélcső MSZ 120/1 A 37X 6/4\" simavégű",10,"m",0,0,0,0]
[]
[null,null,"DN 50"]
[87,"81-004-1.4.1.1.1.7-0110022","Fekete acélcső MSZ 120/1 A 37X 2\" simavégű",180,"m",0,0,0,0]
[]
[null,null,"irányváltozás csőívvel, csőátmérő DN 100 méretig, DN 65"]
[88,"81-004-1.4.1.1.2.1.3-0134261","Acélcső MSZ 29-86 A 37  76,1x2,9 mm",80,"m",0,0,0,0]
[]
[null,null,"Ötrétegű cső szerelése, PE-RT/Alu/PE-RT anyagból, préshüvelyes kötésekkel, cső elhelyezése csőidomokkal együtt, szakaszos nyomáspróbával, falhoronyba vagy padlószerkezetbe, (horonyvésés külön tételben) DN 12-ig"]
[89,"K-tétel","Uponor Uni Pipe MLC ötrétegű cső, tekercsben, 16x2 mm, Cikkszám: 1013371",750,"m",0,0,0,0]
[]
[null,null,"DN 15"]
[90,"K-tétel","Uponor Uni Pipe MLC ötrétegű cső, tekercsben, 20x2,25 mm, Cikkszám: 1013388",500,"m",0,0,0,0]
[]
[null,null,"DN 20"]
[91,"K-tétel","Uponor Uni Pipe MLC ötrétegű cső, tekercsben, 25x2,5 mm, Cikkszám: 1013398",60,"m",0,0,0,0]
[]
[null,null,"DN 25"]
[92,"K-tétel","Uponor Uni Pipe MLC ötrétegű cső, tekercsben, 32x3 mm, Cikkszám: 1013401",200,"m",0,0,0,0]
[]
[null,null,"DN 32"]
[93,"K-tétel","Uponor MLCP ötrétegű cső, szálban, 40x4 mm, Cikkszám: 1013446",10,"m",0,0,0,0]
[]
[null,null,"Fűtési, HMV, HHV vezetékek szigetelése (ívek, idomok, szerelvények szigetelése és burkolás nélkül), polietilén csőhéjjal csupasz kivitelben, ragasztással illetve hőlégfúvással hegesztve, öntapadó ragasztó szalag lezárással, vagy klipsszel rögzítve, NÁ 114 mm csőátmérőig"]
[94,"80-001-1.3.2.1.1-0125623","Armacell Tubolit DG csőhéj, falvastagság: 13 mm, külső csőátmérő 18 mm, R: DG-18/13",750,"m",0,0,0,0]
[]
[95,"80-001-1.3.2.1.1-0125624","Armacell Tubolit DG csőhéj, falvastagság: 13 mm, külső csőátmérő 22 mm, R: DG-22/13",510,"m",0,0,0,0]
[]
[96,"80-001-1.3.2.1.1-0125826","Armacell Tubolit DG csőhéj, falvastagság: 20 mm, külső csőátmérő 28 mm, R: DG-28/20",75,"m",0,0,0,0]
[]
[97,"80-001-1.3.2.1.1-0125828","Armacell Tubolit DG csőhéj, falvastagság: 20 mm, külső csőátmérő 35 mm, R: DG-35/20",200,"m",0,0,0,0]
[]
[98,"80-001-1.3.2.1.1-0125830","Armacell Tubolit DG csőhéj, falvastagság: 20 mm, külső csőátmérő 42 mm, R: DG-42/20",10,"m",0,0,{"$f":"IF(D260=0,\"\",D260*F260)","v":0},0]
[{"$nulls":8},{"$f":"IF(D261=0,\"\",D261*G261)","v":""}]
[null,null,"Fűtési, HMV, HHV vezetékek szigetelése (ívek, idomok, szerelvények szigetelése és burkolás nélkül), kőzetgyapot csőhéjjal kasírozott kivitelben, horganyzott acélhuzal felerősítéssel az illesztések öntapadó alufólia csíkkal történő lezárásával, NÁ 108 mm csőátmérőig"]
[99,"80-001-1.2.1.2.1-0091904","ROCKWOOL Pipo alufóliával kasírozott kőzetgyapot csőhéj, belső átmérő: 35 mm, falvastagság: 25 mm",10,"m",0,0,0,0]
[]
[100,"80-001-1.2.1.2.1-0091906","ROCKWOOL Pipo alufóliával kasírozott kőzetgyapot csőhéj, belső átmérő: 42 mm, falvastagság: 25 mm",145,"m",0,0,0,0]
[]
[101,"80-001-1.2.1.2.1-0091908","ROCKWOOL Pipo alufóliával kasírozott kőzetgyapot csőhéj, belső átmérő: 49 mm, falvastagság: 25 mm",10,"m",0,0,0,0]
[]
[102,"80-001-1.2.1.2.1-0091909","ROCKWOOL Pipo alufóliával kasírozott kőzetgyapot csőhéj, belső átmérő: 60 mm, falvastagság: 25 mm",180,"m",0,0,0,0]
[]
[103,"80-001-1.2.1.2.1-0091910","ROCKWOOL Pipo alufóliával kasírozott kőzetgyapot csőhéj, belső átmérő: 76 mm, falvastagság: 25 mm",80,"m",0,0,0,0]
[]
[null,null,"Acélfelületek mázolásának előkészítő és részmunkái; kézi rozsdamentesítés, cső és regisztercső felületén, (80 NÁ-ig), függesztő és tartószerkezeten, állványzaton, könnyű rozsdásodás esetén"]
[104,"47-000-4.4.5.1-0120509","Supralux lakkbenzin higító, EAN: 5992454205023",450,"m",0,0,0,0]
[]
[null,null,"Korróziógátló alapozás cső és regisztercső felületén (NÁ 80-ig), függesztőn és tartóvason, sormosdó állványzaton, műgyanta kötőanyagú, oldószertartalmú festékkel"]
[105,"47-021-12.4.1-0131032","Supralux Koralkyd korroziógátló alapozó, vörös, EAN: 5992451106033",450,"m",0,0,0,0]
[]
[null,null,"Acélfelületek közbenső festése cső és regisztercső felületén (NÁ 80-ig), függesztőn és tartóvason, sormosdó állványzaton műgyanta kötőanyagú, oldószeres festékkel"]
[106,"47-021-21.4.1-0130821","Supralux alapozófesték, fehér, EAN:5992452511034",450,"m",0,0,0,0]
[]
[null,null,"Acélfelületek átvonó festése cső és regisztercső felületén (NÁ 80-ig), függesztőn és tartóvason, sormosdó állványzaton műgyanta kötőanyagú, oldószeres festékkel"]
[107,"47-021-31.4.1-0141705","Supralux Astralin zománcfesték, piros, EAN: 5992454793049",450,"m",0,0,0,0]
[]
[null,null,"Áttörés vezetékek részére, helyreállítással, 0,1 m2/db méretig, tégla válaszfalban"]
[108,"33-062-1.1-1110002","Kisméretű tömör tégla 250x120x65 mm I.o. Hf5-mc, falazó, cementes mészhabarcs",10,"db",0,0,0,0]
[]
[null,null,"felmenő téglafalban, 25-38 cm vastagság között"]
[109,"33-062-1.2.1-1110002","Kisméretű tömör tégla 250x120x65 mm I.o. Hf5-mc, falazó, cementes mészhabarcs",15,"db",0,0,0,0]
[]
[null,null,"Födémáttörés 30x30 cm méretig, 30 cm födémvastagságig, vasbetonlemez födémben"]
[110,"33-063-2.1.3",null,6,"db",0,0,0,0]
[]
[null,null,"Horonyvésés, téglafalban, 50,01-100,00 cm2 keresztmetszet között"]
[111,"33-063-3.2.5",null,40,"m",0,0,0,0]
[]
[null,null,"Központi fűtési rendszerekben használható inhibitor, vízkőképződés és korrózió megakadályozására. Spiroterm gyártmány"]
[112,"K-tétel","Sentinel X100/1 Inhibitor",15,"liter",0,0,0,0]
[]
[null,null,"Fűtési rendszer feltöltése, mobil sótalanítóval kezelt vízzel"]
[113,"K-tétel",null,1,"klt.",0,0,0,0]
[]
[null,null,"Kazánház, illetve hőközpont beszabályozása, beüzemelése 139.561-279.120 W teljesítmény között"]
[114,"82-016-12.5",null,1,"db",0,0,0,0]
[]
[null,null,"Próbafűtés, radiátorok beszabályozása 139.561-279.120 W teljesítmény között"]
[115,"82-016-13.5",null,1,"db",0,0,0,0]
[]
[null,null,"Fűtésszerelési munkák átadás-átvételi eljárásával kapcsolatos költségek, átadási dokumentáció készítés"]
[116,"K-tétel",null,4,"óra",0,0,0,0]
[]
[null,null,"átadási eljárás lefolytatása"]
[117,"K-tétel",null,4,"óra",0,0,0,0]
[]
[null,null,"kezelési utasítás készítése"]
[118,"K-tétel",null,4,"óra",0,0,0,0]
[]
[null,null,"kezelésre vonatkozó kioktatás"]
[119,"K-tétel",null,4,"óra",0,0,0,0]
[]
[{"$nulls":7},{"$f":"SUM(H4:H319)","v":0},{"$f":"SUM(I4:I319)","v":0}]

{"sheet":"II. ÜTEM - LÉGTECHNIKA","index":3,"n_rows":203,"n_cols":9,"rows_kept":203,"headers":{"header":["VERESEGYHÁZI KATOLIKUS GIMNÁZIUM 2112 Veresegyház, Fő út 117-125., hrsz.: 58 AJÁNLATADÁSI TERV","","2017.08.11."],"footer":["TEVIM KFT."]}}
["No.","  Azonosító","  Szöveg","Mennyiség","Egys.","Anyagár","Óradij","xAnyagár","xÓradij"]
[]
[null,null,"L02 - Légkezelő berendezés - (északi szárny vizesblokk):                                                                                         - Berendezés típusa: \tAIRVENT MultiPlex 42R típ.,                                       - Befúvás légmennyisége:\t 3.200 m3/ó- 350Pa,                                              - Elszívás légmennyisége:\t 3.200 m3/ó- 350Pa,                                                   - Szellőző rendszer típusa:\t kiegyenlített,                                                - Befújt levegő hőmérséklete:\t 20 °C,                                                       - Hővisszanyerés: \tvan, lemezes keresztáramú,                                         - Visszakeverés: \tnincs                                                                         - Szükséges fűtési teljesítmény (60/ 35 °C):\t 37,3 kW,                   - Villamos teljesítmény:\t 3x400V, P=2,5+2,5=5,0kW                          - alapkerettel, kondenzvíz szifonnal AIRVENT gyártmányú,"]
[1,"K-tétel","MultiPlex 42R típ. beltéri légkezelő",1,"ber.",0,0,{"$f":"IF(D4=0,\"\",D4*F4)","v":0},{"$f":"IF(D4=0,\"\",D4*G4)","v":0}]
[{"$nulls":8},{"$f":"IF(D5=0,\"\",D5*G5)","v":""}]
[null,null,"L03 - Légkezelő berendezés - (konyha-étterem):                                               - Berendezés típusa: \tAIRVENT MultiPlex 49Q típ.,                                           - Befúvás légmennyisége:\t 4.000 m3/ó- 350Pa,                                                     - Elszívás légmennyisége:\t 4.500 m3/ó- 500Pa,                                             - Szellőző rendszer típusa:\t kiegyenlített,                                                           - Befújt levegő hőmérséklete:\t 20 °C,                                                   - Hővisszanyerés: \tvan, lemezes keresztáramú,                                        - Visszakeverés: \tnincs                                                                      - Szükséges fűtési teljesítmény (60/ 35 °C):\t 46,6 kW,                     - Villamos teljesítmény:\t 3x400V, P=2,5+2,5=5,0kW                              - alapkerettel, kondenzvíz szifonnal AIRVENT gyártmányú,"]
[2,"K-tétel","MultiPlex 49Q típ. beltéri légkezelő",1,"ber.",0,0,0,0]
[]
[null,null,"L04 - Légkezelő berendezés - (labor helyiség):                                                                    - Berendezés típusa: \tAIRVENT Domekt CF 900 F típ.,         - Befúvás légmennyisége:\t 8.00 m3/ó- 250Pa,                                              - Elszívás légmennyisége:\t 8.00 m3/ó- 250Pa,                                                       - Szellőző rendszer típusa:\t kiegyenlített,                                                          - Befújt levegő hőmérséklete:\t 22 °C,                                                            - Hővisszanyerés: \tvan, lemezes keresztáramú,                                            - Visszakeverés: \tnincs                                                                       - Szükséges fűtési teljesítmény (60/ 35 °C):\t 2x3,6 kW,                     - Villamos teljesítmény:\t 1x230V, P=300W AIRVENT gyártmányú,"]
[3,"K-tétel","Domekt CF 900 F típ. beltéri légkezelő",1,"ber.",0,0,0,0]
[]
[null,null,"ZRUNEK gumilemez beépítése, légkezelő berendezés acél alapkerete és a födém közé, MAFUND-FURATLEMEZ típ. 500x250x25mm"]
[4,"K-tétel","csz.: 94-11-0350",12,"db",0,0,0,0]
[]
[null,null,"Melegvizes léghevítő, légcsatornába beépítve, szabályozással együtt, AIRVENT gyártmány,"]
[5,"K-tétel","DH-315M típ.",2,"db",0,0,0,0]
[]
[null,null,"Egyoldalon szívó, direktmeghajtású centrifugális ventilátor kemény fröccsöntött, antisztatikus polipropilén házzal, motortartóval, korrozív gőzök elszívására, egy fázisú négy pólusú motorral, Üzemi hőmérséklettartomány: -10°C és +60°C között. Robbanásbiztos kivitelben. Airvent gyártmány,"]
[6,"K-tétel","CMPT/4-200 műanyagházas centrifugál ventilátor, ATEX",1,"db",0,0,0,0]
[]
[null,null,"Műanyag esősapka, tető fölé vezetett légcsatornára szerelve, levegő kifúvásra, ferdetető átvezetéssel, vízszigeteléssel, bádogozással, kompletten beépítve, Airvent gyártmány"]
[7,"K-tétel","CTP-250-N műanyag esősapka",1,"db",0,0,0,0]
[]
[null,null,"Esősapka, tető fölé vezetett légcsatornára szerelve, levegő kifúvásra, ferdetető átvezetéssel, vízszigeteléssel, bádogozással, kompletten beépítve, Airvent gyártmány"]
[8,"K-tétel","CT-125 univerzális esősapka",1,"db",0,0,0,0]
[]
[null,null,"Csappantyú elhelyezése, lemezcsatornára, kör keresztmetszetű, NA 63- 355 mm között"]
[9,"57-015-13.1.1.2-0349175","Visszacsapó csappantyú, kör BDS- 250",2,"db",0,0,0,0]
[]
[null,null,"Axiális golyócsapágyas kisventilátor falon kívüli (oldalfalra, vagy mennyezetre) szerelésre, felszerelve, AIRVENT DECOR Z típusú, +CSAPP.+IDŐRELÉ"]
[10,"K-tétel","DECOR-200 CRZ típ.",2,"db",0,0,0,0]
[]
[null,null,"Kulisszás hangcsillapító négyszög keresztmetszettel, horganyzott acéllemez házban, üvegfátyollal kasírozott üveggyapotból készített kulisszákkal, AIRVENT RB 210 típusú, résszélesség 100 mm, kulisszavastagság 200 mm, L= 600 mm"]
[11,"K-tétel","B= 600 mm  H= 400 mm",1,"db",0,0,0,0]
[]
[12,"K-tétel","B= 600 mm  H= 500 mm",2,"db",0,0,{"$f":"IF(D36=0,\"\",D36*F36)","v":0},0]
[]
[null,null,"L= 1420 mm"]
[13,"K-tétel","B= 600 mm  H= 400 mm",2,"db",0,0,0,0]
[]
[14,"K-tétel","B= 600 mm  H= 500 mm",3,"db",0,0,0,0]
[]
[null,null,"Kulisszás hangcsillapító könyök négyszög keresztmetszettel, horganyzott acéllemez házban, horizontálisan szerelt üvegfátyollal kasírozott üveggyapotból készített kulisszákkal, AIRVENT RBV-H 210 típusú, résszélesség 100 mm, kulisszavastagság 200 mm,"]
[15,"K-tétel","B= 600mm H= 400mm Y=150mm Z=150mm",2,"db",0,0,0,0]
[]
[null,null,"Egyenes hangcsillapító kör keresztmetszetű légcsatorna hálózatba építhető kivitelben, horganyzott acéllemezből készült belső perforált lemezzel, horganyzott acél spirálkorcolt csőből készült köpennyel, idomtűréses csatlakozó csonkokkal, felszerelve, AIRVENT CD50 típusú, 50 mm vtg. üveggyapot szigeteléssel"]
[16,"K-tétel","CD50- 315- 1200",2,"db",0,0,0,0]
[]
[null,null,"Szabályzó zsaluszerkezet elhelyezése, lemezcsatornára, négyszög keresztmetszetű, kézi, Airvent gyártmány -0,10 m2-ig 0,11-0,25 m2 között"]
[17,"K-tétel","Szabályozó és elzáró zsalu, négyszögletes J-600x200-K-MZ",4,"db",0,0,0,0]
[]
[null,null,"Kör keresztmetszetű, csappantyú, pillangószelep, térfogat áram állandósító elem felszerelése, lemezcsatornára, NÁ 350 mm-ig"]
[18,"K-tétel","AIRVENT SPA-200 pillangószelep horg. acéllemezből, NÁ 200 mm",2,"db",0,0,0,0]
[]
[19,"K-tétel","AIRVENT SPA-250 pillangószelep horg. acéllemezből, NÁ 250 mm",8,"db",0,0,0,0]
[]
[null,null,"Kör keresztmetszetű, 90 percig hőálló tűzcsappantyú, horganyzott acélból, azbesztmentes zárólappal, Lindab gyártmány, 24V-os rugóvisszatérítésű mozgató motorral, végálláskapcsolókkal,"]
[20,"K-tétel","WH25-250-VSB (BLF24)",3,"db",0,0,0,0]
[]
[21,"K-tétel","WH25-315-VSB (BLF24)",2,"db",0,0,0,0]
[]
[null,null,"Négyszög keresztmetszetű, 120 percig hőálló tűzcsappantyú,  horganyzott acélból, Lindab gyártmány, 24V-os rugóvisszatérítésű mozgató motorral, végálláskapcsolókkal,"]
[22,"K-tétel","WK25-400x300-VSB (BLF24)",2,"db",0,0,0,0]
[]
[23,"K-tétel","WK25-500x300-VSB (BLF24)",2,"db",0,0,0,0]
[]
[24,"K-tétel","WK25-600x300-VSB (BLF24)",2,"db",0,0,0,0]
[{"$nulls":7},{"$f":"IF(D68=0,\"\",D68*F68)","v":""}]
[25,"K-tétel","WK25-600x500-VSB (BLF24)",4,"db",0,0,0,{"$f":"IF(D69=0,\"\",D69*G69)","v":0}]
[]
[null,null,"Egyéb befúvó és elszívó szerkezetek, kör vagy négyszög keresztmetszetű légszelep felszerelése lemezcsatornára, NÁ 350 mm-ig"]
[26,"83-002-4.1.1.1.1-0114562","AIRVENT KVP elszívó légszelep, acéllemezből, RAL 9010 festve, NÁ 100 mm",3,"db",0,0,0,0]
[]
[27,"83-002-4.1.1.1.1-0114563","AIRVENT KVP elszívó légszelep, acéllemezből, RAL 9010 festve, NÁ 125 mm",8,"db",0,0,0,0]
[]
[28,"83-002-4.1.1.1.1-0114564","AIRVENT KVP elszívó légszelep, acéllemezből, RAL 9010 festve, NÁ 160 mm",15,"db",0,0,0,0]
[]
[null,null,"Befúvó és elszívószerkezet elhelyezése, kör keresztmetszetű, mennyezetbe, külön tételben kiírt tartószerkezetre, NA 63- 355 mm között"]
[29,"57-015-4.1.2.2-0114514","AIRVENT TNC befúvó tányérszelep, acéllemezből, RAL 9010 festve, NÁ 160 mm",16,"db",0,0,0,0]
[]
[null,null,"Kör keresztmetszetű mennyezeti befúvók kiegészítő elemeinek felszerelése, NÁ 350 mm-ig"]
[30,"83-002-2.6.1-0114703","AIRVENT TLR befúvó doboz horizontális csonkkal, TSK, TNC, TSP, PET, PEF, RA elemekhez, hangszig.burkolattal, pillangószeleppel, NÁ 160 mm",16,"db",0,0,0,0]
[]
[null,null,"Kétsoros, aprólamellás anemosztát festett acéllemezből készült kerettel, festett extrudált alumínium lamellákkal, felszerelve, AIRVENT DH...E típusú, rejtett, rúgóklipszes rögzítéssel"]
[31,"K-tétel","DH-RU 200x100",4,"db",0,0,0,0]
[]
[32,"K-tétel","DH-RU 300x200",2,"db",0,0,0,0]
[]
[33,"K-tétel","DH-RU 500x100",6,"db",0,0,0,0]
[]
[null,null,"Négyzetbetétes, fixlamellás rács festett acéllemezből készült kerettel, festett alumínium rácsbetéttel, felszerelve, AIRVENT E5... E típusú, rejtett, rúgóklipszes rögzítéssel"]
[34,"K-tétel","E5-RU 200x100",9,"db",0,0,0,0]
[]
[35,"K-tétel","E5-RU 300x200",5,"db",0,0,0,0]
[]
[null,null,"Szabályozó zsalu anemosztátok mögé szerelhető kivitelben, ellentétesen mozgó zsalulevelekkel, az anemosztát felől kezelhető állító és rögzítő szerkezettel, horganyzott acéllemezből (a zsalu anemosztát oldali felülete matt feketére festve), felszerelve, AIRVENT S típusú"]
[36,"K-tétel","S- 200-100",13,"db",0,0,0,0]
[]
[37,"K-tétel","S- 300-200",7,"db",0,0,0,0]
[{"$nulls":7},{"$f":"IF(D100=0,\"\",D100*F100)","v":""}]
[38,"K-tétel","S- 500-100",7,"db",0,0,0,0]
[]
[null,null,"Négyszög keresztmetszetű mennyezeti befúvók, vagy elszívók felszerelése, légcsatornára, ill. csatlakozó dobozra, felületnagyság: 0,25 m2 felett"]
[39,"83-002-1.4.1.3-0114626","AIRVENT PETI perforált befúvó álmennyezetbe építhető kivitelben, RAL 9010 festve, csatl.250 mm, AxA = 600x600 mm",2,"db",0,0,0,0]
[]
[null,null,"Kör keresztmetszetű mennyezeti befúvók kiegészítő elemeinek felszerelése, NÁ 350 mm-ig"]
[40,"83-002-2.6.1-0114705","AIRVENT TLR befúvó doboz horizontális csonkkal, TSK, TNC, TSP, PET, PEF, RA elemekhez, hangszig.burkolattal, pillangószeleppel, NÁ 250 mm",2,"db",0,0,0,0]
[]
[null,null,"Légtechnikai rácsszerkezet elhelyezése, négyszög keresztmetszetű, falnyílásra, légcsatorna csatlakozással, 0,11-0,25 m2 között"]
[41,"57-015-1.2.3.2-0353023","Fénytörő rács RAL 9010 színre festett alumíniumból ÖM 400x 300 RAL",2,"db",0,0,0,0]
[]
[null,null,"Négyszög keresztmetszetű légcsatorna és idomaik szerelése, tartószerkezettel együtt, légcsatorna horganyzott acéllemezből, idomokkal együtt, lemezvastagság: 0,6 mm és 0,7 mm, 100-500 mm oldalhosszúság között"]
[42,"K-tétel","AEROPRODUKT VL egyenes légcsatorna és idom, horganyzott acéllemezből, 0,7 mm, 2,5 nyomásfokozat, oldalhossz:150-500 mm",70,"m2",0,0,0,0]
[]
[null,null,"lemezvastagság: 0,9 mm, 501-1000 mm oldalhosszúság között"]
[43,"K-tétel","AEROPRODUKT VL egyenes légcsatorna és idom, horganyzott acéllemezből, 0,9 mm, 2,5 nyomásfokozat, oldalhossz:501-1000 mm",120,"m2",0,0,0,0]
[]
[null,null,"Négyszög keresztmetszetű légcsatorna és idomaik szerelése, tartószerkezet nélkül, légcsatorna fekete acéllemezből, lemezvastagság: 0,7 mm, 100-500 mm oldalhosszúság között"]
[44,"83-001-1.1.1",null,7,"m2",0,0,0,0]
[]
[null,null,"lemezvastagság: 0,9 mm, 501-1000 mm oldalhosszúság között"]
[45,"83-001-1.1.2",null,25,"m2",0,0,0,0]
[]
[null,null,"Négyszög keresztmetszetű légcsatorna és idomaik szerelése, tartószerkezettel együtt, légcsatorna és idom fekete acéllemezből, lemezvastagság: 2,0 mm"]
[46,"K-tétel",null,40,"m2",0,0,0,0]
[]
[null,null,"Kör keresztmetszetű légcsatorna és idomaik szerelése, tartószerkezettel együtt, légcsatorna fekete acéllemezből, lemezvastagság: 2,0 mm"]
[47,"K-tétel",null,3,"m2",0,0,0,0]
[]
[null,null,"Acélfelületek mázolásának előkészítő és részmunkái; kézi rozsdamentesítés, acélszerkezeten, nagyobb acélfelületen, könnyű rozsdásodás esetén"]
[48,"47-000-4.4.2.1-0120509","Supralux lakkbenzin higító, EAN: 5992454205023",43,"m2",0,0,0,0]
[{"$nulls":7},{"$f":"IF(D132=0,\"\",D132*F132)","v":""}]
[null,null,"Korróziógátló alapozás nagyméretű acélszerkezeten, műgyanta kötőanyagú, oldószertartalmú festékkel",{"$nulls":5},{"$f":"IF(D133=0,\"\",D133*G133)","v":""}]
[49,"47-021-12.2.1-0131032","Supralux Koralkyd korróziógátló alapozófesték, vörös, EAN: 5992451106033",43,"m2",0,0,0,0]
[]
[null,null,"Acélfelületek közbenső festése acél szerkezeten, nagyobb acélfelületen, műgyanta kötőanyagú, oldószeres festékkel"]
[50,"47-021-21.2.1-0130821","Supralux alapozófesték, fehér, EAN:59925452511034",43,"m2",0,0,0,0]
[]
[null,null,"Acélfelületek átvonó festése acélszerkezeten, nagyobb acélfelületen műgyanta kötőanyagú, oldószeres festékkel"]
[51,"47-021-31.2.1-0141701","Supralux Astralin zománcfesték, fehér, EAN: 5992454787048",43,"m2",0,0,0,0]
[]
[null,null,"Kör keresztmetszetű légcsatorna és idomaik szerelése, tartószerkezettel együtt, spirálkorcolt lemezcső, idomakkal, horganyzott acéllemezből, NÁ 63-150 mm között"]
[52,"K-tétel","AEROPRODUKT SPIKO spirálkorcolt lemezcső borda nélkül,idomokkal, horganyzott acéllemezből, v=0,7 mm, NÁ 100 mm",3,"m",0,0,0,0]
[]
[53,"K-tétel","AEROPRODUKT SPIKO spirálkorcolt lemezcső borda nélkül,idomokkal, horganyzott acéllemezből, v=0,7 mm, NÁ 125 mm",5,"m",0,0,0,0]
[]
[null,null,"spirálkorcolt lemezcső, horganyzott acéllemezből, NÁ 160-250 mm között"]
[54,"K-tétel","AEROPRODUKT SPIKO spirálkorcolt lemezcső borda nélkül,idomokkal, horganyzott acéllemezből, v=0,7 mm, NÁ 160 mm",20,"m",0,0,0,0]
[]
[null,null,"spirálkorcolt lemezcső, horganyzott acéllemezből, NÁ 160-250 mm között"]
[55,"K-tétel","AEROPRODUKT SPIKO spirálkorcolt lemezcső bordával, idomokkal, horganyzott acéllemezből, v=0,7 mm, NÁ 200 mm",50,"m",0,0,0,0]
[]
[56,"K-tétel","AEROPRODUKT SPIKO spirálkorcolt lemezcső bordával, horganyzott acéllemezből, v=0,7 mm, NÁ 250 mm, Csz.: APSPIKOB07250",40,"m",0,0,0,0]
[]
[null,null,"NÁ 280-450 mm között"]
[57,"K-tétel","AEROPRODUKT SPIKO spirálkorcolt lemezcső bordával, horganyzott acéllemezből, v=0,9 mm, NÁ 315 mm, Csz.: APSPIKOB09315",35,"m",0,0,0,0]
[]
[null,null,"Kör keresztmetszetű légcsatorna és idomaik szerelése, tartószerkezet nélkül, hangcsillapított hajlítható lemezcső, alumínium lemezből, NÁ 63-150 mm között"]
[58,"83-001-2.14.1-0532224","AIRVENT SONODEC 25 kettősfalú hangszigetelt flexibilis cső, 25 mm-es szigeteléssel, NÁ 125 mm",7,"m",0,0,0,0]
[]
[null,null,"NÁ 160-250 mm között"]
[59,"83-001-2.14.2-0532227","AIRVENT SONODEC 25 kettősfalú hangszigetelt flexibilis cső, 25 mm-es szigeteléssel, NÁ 160 mm",30,"m",0,0,0,0]
[]
[null,null,"Kör keresztmetszetű légcsatorna és idomaik szerelése, tartószerkezettel együtt, műanyag légcsatorna cső és idom, antisztatikus polipropilén anyagból Thermoplast gyártmány",{"$nulls":4},{"$f":"IF(D164=0,\"\",D164*F164)","v":""}]
[60,"K-tétel","PP-EL merev cső, idomokkal NA250",10,"m",0,0,0,0]
[]
[null,null,"LINDAB gyártmányú, tisztító nyílás, szögletes légcsatornára szerelve"]
[61,"K-tétel","IPF 400x300",4,"db",0,0,0,0]
[]
[null,null,"Légtechnikai és szellőző berendezések vezetékeinek hő- és hangszigetelése (ívek, idomok, szerelvények szigetelése és burkolás nélkül), négyszög keresztmetszetű, szintetikus gumi alapú kaucsuk tekerccsel öntapadós kialakítással, csupasz kivitelben, öntapadó ragasztó szalag lezárással"]
[62,"80-005-1.2.4.1.2.1-0114184","Armacell Armaflex AF öntapadó lap tekercsben, falvastagság: 19 mm, R: AF-19MM/E-A",50,"m2",0,0,0,0]
[]
[null,null,"Tűzgátló szerkezeteken történő átvezetések, helyreállítása, 0,10 m2/db méretig,"]
[63,"K-tétel","tűzvédelmi tömítőmasszával",17,"db",0,0,0,0]
[]
[null,null,"Áttörés helyreállítással, 1 m2/db méretig felmenő téglafalban"]
[64,"K-tétel","38 cm vastagságig",16,"db",0,0,0,0]
[]
[null,null,"Légcsatorna hálózat és tartozékainak üzempróbái és beszabályozása, vezetékrendszer tömörségi vizsgálata"]
[65,"K-tétel",null,1,"klt.",0,0,0,0]
[]
[null,null,"Légcsatorna hálózat és tartozékainak üzempróbái és beszabályozása, szabályzó szerkezetek beszabályozása"]
[66,"K-tétel",null,1,"klt.",0,0,0,0]
[]
[null,null,"légkezelő központ (klíma) üzempróbái és beszabályozása"]
[67,"K-tétel",null,1,"klt.",0,0,0,0]
[]
[null,null,"a teljes légtechnikai rendszer beszabályozása és 72 órás próbaüzeme"]
[68,"K-tétel",null,1,"klt.",0,0,0,0]
[]
[null,null,"Légtechnikai szerelési munkák átadás-átvételi eljárásával kapcsolatos költségek, átadási dokumentáció készítés."]
[69,"K-tétel",null,1,"klt.",0,0,0,0]
[]
[null,null,"átadási eljárás lefolytatása"]
[70,"K-tétel",null,1,"klt.",0,0,0,0]
[{"$nulls":7},{"$f":"IF(D196=0,\"\",D196*F196)","v":""}]
[null,null,"kezelési utasítás készítés",{"$nulls":5},{"$f":"IF(D197=0,\"\",D197*G197)","v":""}]
[71,"K-tétel",null,1,"klt.",0,0,0,0]
[]
[null,null,"kezeléssel kapcsolatos kioktatás"]
[72,"K-tétel",null,1,"klt.",0,0,0,0]
[]
[{"$nulls":7},{"$f":"SUM(H3:H201)","v":0},{"$f":"SUM(I3:I201)","v":0}]

{"sheet":"II. ÜTEM - GÁZELLÁTÁS","index":4,"n_rows":98,"n_cols":9,"rows_kept":98,"headers":{"header":["VERESEGYHÁZI KATOLIKUS GIMNÁZIUM 2112 Veresegyház, Fő út 117-125., hrsz.: 58 AJÁNLATADÁSI TERV","","2017.08.11."],"footer":["TEVIM Kft."]}}
["No.","  Azonosító","  Szöveg","Mennyiség","Egys.","Anyagár","Óradij","xAnyagár","xÓradij"]
[]
[null,null,"Készülékek víz- vagy gázoldali bekötése méretre vágható bordáscsővel, peremezhető cső hollandi csatlakozás készítése nélkül, gázoldali bekötés, inox bordáscsővel, DN 20"]
[1,"82-011-1.1.2.1.3-0240011","GEBO Variogas 3/4\" inox bordáscső gázra, 5 m-es tekercs, A01-0001-0697",1.5,"m",0,0,{"$f":"IF(D4=0,\"\",D4*F4)","v":0},{"$f":"IF(D4=0,\"\",D4*G4)","v":0}]
[{"$nulls":8},{"$f":"IF(D5=0,\"\",D5*G5)","v":""}]
[null,null,"hollandis csatlakozás készítése, DN 20"]
[2,"82-011-1.1.2.2.3-0240206","GEBO 3/4\" hollandi + tömítés gázcsőre, A02-0010-1829",6,"db",0,0,0,0]
[]
[null,null,"KASZKÁD ÉGÉSTERMÉK-ELVEZETŐ ÉS ÉGÉSLEVEGŐ HOZZÁVEZETŐ RENDSZER KIALAKÍTÁSA AZ ALÁBBI ELEMEKBŐL: Kaszkád rendszerű, túlnyomásálló, égéstermék-elvezető, égéslevegő hozzávezető rendszer, Tricox EW-ALBI, nemesacél csőanyaggal, az alábbi elemekből összeépítve: FÜSTGÁZ ELVEZETÉS"]
[3,"K-tétel","átm.100/150-2x100mm szétválasztó adapter; TWIN38REM",3,"db",0,0,0,0]
[]
[4,"K-tétel","átm.100 nemesacél tisztító-ellenőrző idom; TN06549100",3,"db",0,0,0,0]
[]
[5,"K-tétel","átm.100 nemesacél egyenes cső, 250mm hosszban; TN0604100",3,"db",0,0,0,0]
[]
[6,"K-tétel","átm.100 nemesacél egyenes cső, 500mm hosszban; TN0603100",3,"db",0,0,0,0]
[]
[7,"K-tétel","átm.100 87° könyök idom; TN0622100",3,"db",0,0,0,0]
[]
[8,"K-tétel","átm.100 szilikon tömítőgyűrű; ALBI 26100",15,"db",0,0,0,0]
[]
[9,"K-tétel","átm.200-100 T-csatlakozó vízorral 45°-os idom; FU0616200100",3,"db",0,0,0,0]
[]
[10,"K-tétel","átm.200 nemesacél kondenzátum leválasztó idom; FU06110200",1,"db",0,0,0,0]
[]
[11,"K-tétel","átm.200 nemesacél zárófedél fogantyúval; FU44200",1,"db",0,0,0,0]
[]
[12,"K-tétel","átm.200 nemesacél egyenes cső, 250mm hosszban; FU0604200",2,"db",0,0,0,0]
[]
[13,"K-tétel","átm.200 nemesacél egyenes cső, 500mm hosszban; FU0603200",2,"db",0,0,0,0]
[]
[14,"K-tétel","átm.200 nemesacél egyenes cső, 1000mm hosszban; FU0602200",2,"db",0,0,0,0]
[]
[15,"K-tétel","átm.200 nemesacél vizsgálóelem; ALBI0630200",1,"db",0,0,0,0]
[]
[16,"K-tétel","átm.200 átmeneti idom egyhéjúról hőszig. rendszerre; DWETN37200",1,"db",0,0,{"$f":"IF(D36=0,\"\",D36*F36)","v":0},0]
[]
[17,"K-tétel","átm.200 könyök 87° idom támasztólábbal; DWETNAL57200",1,"db",0,0,0,0]
[]
[18,"K-tétel","átm.200 nemesacél hőszig. egyenes cső, 1000mm hosszban; DWETN13200",3,"db",0,0,0,0]
[]
[19,"K-tétel","átm.200 ferdetető átvezető elem 26°-35°; DWECO38200",1,"db",0,0,0,0]
[]
[20,"K-tétel","átm.200 véglezáró elem; DWETN32200",1,"db",0,0,0,0]
[]
[21,"K-tétel","Fali rögzítő elem, állítható, NÁ200+50mm; ZUWA.004D00.5560250",2,"db",0,0,0,0]
[]
[22,"K-tétel","Fali konzol, állítható faltávolság 50-150mm, NÁ150; DW01200",1,"db",0,0,0,0]
[]
[23,"K-tétel","átm.200 szilikon tömítőgyűrű; ALBI 26200",16,"db",0,0,0,0]
[]
[null,null,"ÉGÉSI LEVEGŐ BEVEZETÉS"]
[24,"K-tétel","átm.100 nemesacél egyenes cső, 250mm hosszban; TN0604100",3,"db",0,0,0,0]
[]
[25,"K-tétel","átm.100 nemesacél egyenes cső, 500mm hosszban; FU0603150",3,"db",0,0,0,0]
[]
[26,"K-tétel","átm.100 nemesacél 87° könyök idom tisztítónyílással; FU0623100",3,"db",0,0,0,0]
[]
[27,"K-tétel","átm.100 nemesacél 45° ív idom; TN0619100",3,"db",0,0,0,0]
[]
[28,"K-tétel","átm.200-100 T-csatlakozó vízorral 45°-os idom; FU0615200100",3,"db",0,0,0,0]
[]
[29,"K-tétel","átm.200 nemesacél zárófedél fogantyúval; FU44200",1,"db",0,0,0,0]
[]
[30,"K-tétel","átm.200 nemesacél egyenes cső, 250mm hosszban; FU0604200",3,"db",0,0,0,0]
[]
[31,"K-tétel","átm.200 nemesacél egyenes cső, 500mm hosszban; FU0603200",2,"db",0,0,0,0]
[{"$nulls":7},{"$f":"IF(D68=0,\"\",D68*F68)","v":""}]
[32,"K-tétel","átm.200 nemesacél egyenes cső, 1000mm hosszban; FU0602200",2,"db",0,0,0,{"$f":"IF(D69=0,\"\",D69*G69)","v":0}]
[]
[33,"K-tétel","átm.200 nemesacél 87° könyök idom; FU0622200",1,"db",0,0,0,0]
[]
[34,"K-tétel","átm.200 ferdetető átvezető elem 26°-35°; DWECO38200",1,"db",0,0,0,0]
[]
[35,"K-tétel","átm.200 esővédő sapka; FU28200",1,"db",0,0,0,0]
[]
[null,null,"Légtechnikai és szellőző berendezések vezetékeinek hő- és hangszigetelése (ívek, idomok, szerelvények szigetelése és burkolás nélkül), négyszög keresztmetszetű, szintetikus gumi alapú kaucsuk tekerccsel öntapadós kialakítással, csupasz kivitelben, öntapadó ragasztó szalag lezárással"]
[36,"80-005-1.2.4.1.2.1-0114184","Armacell Armaflex AF öntapadó lap tekercsben, falvastagság: 19 mm, R: AF-19MM/E-A",5,"m2",0,0,0,0]
[]
[null,null,"Áttörés vezetékek részére, helyreállítással, 0,1 m2/db méretig, felmenő vasalt zsalukő falban, 26-40 cm vastagság között"]
[37,"33-062-1.4.3-3110002","Kisméretű tömör tégla 250x120x65 mm I.o. M 2,5 (Hf30-cm) falazó, meszes cementhabarcs",1,"db",0,0,0,0]
[]
[null,null,"Gázszerelési munkák átadás-átvételi eljárásával kapcsolatos költségek, átadási dokumentáció készítése"]
[38,"K-tétel",null,2,"óra",0,0,0,0]
[]
[null,null,"átadási eljárás lefolytatása"]
[39,"K-tétel",null,2,"óra",0,0,0,0]
[]
[null,null,"kezelési utasítás készítése"]
[40,"K-tétel",null,2,"óra",0,0,0,0]
[]
[null,null,"kezelésre vonatkozó kioktatás"]
[41,"K-tétel",null,2,"óra",0,0,0,0]
[]
[null,null,"Szakvélemények, hatósági engedélyek beszerzésével kapcsolatos költségek, kéményseprő szakvélemény"]
[42,"K-tétel",null,1,"db",0,0,0,0]
[]
[{"$nulls":7},{"$f":"SUM(H3:H96)","v":0},{"$f":"SUM(I3:I96)","v":0}]